{"text_format":"1","workbook":"xlsx","n_sheets":5,"sheets":["Introduction","Indicator Definitions","Output","Change Log","Sheet1"],"not_rendered":{"charts":0,"images":36,"macros":1,"external_links":1,"defined_names":23,"comments":0,"pivot_tables":0},"unopened":[],"bounds":{"document_bytes":16777216,"sheet_cells":100000,"rows_first":2000,"rows_last":500,"rows_between":2000,"halvings":0,"cell_chars":16384,"cell_head_chars":4096},"cells_cut":0,"cells_raw":0,"read":"whole","date_system":"1900"}

{"sheet":"Introduction","index":0,"n_rows":30,"n_cols":7,"rows_kept":30,"cut":false,"hidden":false,"merged":[[15,5,17,17]]}
[]
[]
[null,null,null,null,"Health & Social Care Maps: Indicator Definitions"]
[]
[]
[]
[]
[]
[]
[null,null,null,null,null,"Introduction"]
[]
[null,null,null,null,null,"The following pages are included this tool"]
[null,null,null,null,null,null,"Introduction - provides an overview instructions and guidance"]
[null,null,null,null,null,null,"Indicator definitions - contains information on the indicators included within the Health & Social Care Maps"]
[]
[null,null,null,null,null,"The Health & Social Care maps present a compilation of continually updated intelligence indicators to profile Local Authorities and Clinical Commissioning Groups within Kent. These are a rich source of information to support the assessment of and commissioning for current and future health and social care needs of the local population."]
[]
[]
[]
[null,null,null,null,null,"The Health & Social Care maps are structured into three chapters to bring together the key indicators using a lifecourse approach"]
[null,null,null,null,null,null,"Starting Well - data on the range of factors related to the health and wellbeing of children and young people"]
[null,null,null,null,null,null,"Living Well - data on the range of long term conditions, hospital admissions and mortality"]
[null,null,null,null,null,null,"Ageing Well - data on the range of factors related to the health and wellbeing of older people"]
[]
[]
[null,null,null,null,null,"Produce a PDF report of selected indicators"]
[]
[null,null,null,null,null,"    1. on the Indicator Definitions page select indicators of interest, by changing cells from \"N\" to \"Y\" in the 'Select for report' column"]
[null,null,null,null,null,"    2. when you have finished, click on \"Produce PDF of selection\" "]
[null,null,null,null,null,"    3. save these PDFs for further viewing "]

{"sheet":"Indicator Definitions","index":1,"n_rows":108,"n_cols":11,"rows_kept":108,"cut":false,"hidden":false,"merged":[]}
["ID","Domain","Subset","Indicator ","Subheader","Smallprint","Definition","Notes","National Release ","Source","Select for report"]
[{"$f":"'[1]Indicator Definitions'!A2","v":"S05"},{"$f":"'[1]Indicator Definitions'!B2","v":"Starting Well"},{"$f":"'[1]Indicator Definitions'!C2","v":"Birth statistics"},{"$f":"'[1]Indicator Definitions'!D2","v":"General fertility rate"},{"$f":"'[1]Indicator Definitions'!E2","v":"The crude rate of total live births per 1,000 women aged 15 to 44"},{"$f":"IF('[1]Indicator Definitions'!F2=0, \"\", '[1]Indicator Definitions'!F2)","v":""},{"$f":"'[1]Indicator Definitions'!G2","v":"The crude rate of total live births per 1,000 women aged 15 to 44. Numerator: total live births for the years used by area of residence. Denominator: mid-year population estimates for females aged 15 to 44 for the years used by area of residence.\n"},{"$f":"IF('[1]Indicator Definitions'!H2=0, \"\", '[1]Indicator Definitions'!H2)","v":"A measure of current fertility levels. This uses the information collected at birth registration, representing births occurring within the calendar year and a small number of late registrations from the previous year. Birth registration is legally required within 42 days of occurrence and most information collected is typically supplied to registrars by one or both parents.  "},{"$f":"IF('[1]Indicator Definitions'!I2=0, \"\", '[1]Indicator Definitions'!I2)","v":"Annual August"},{"$f":"'[1]Indicator Definitions'!L2","v":"ONS, NHS Digital"},"N"]
[{"$f":"'[1]Indicator Definitions'!A3","v":"S19"},{"$f":"'[1]Indicator Definitions'!B3","v":"Starting Well"},{"$f":"'[1]Indicator Definitions'!C3","v":"Birth statistics"},{"$f":"'[1]Indicator Definitions'!D3","v":"Infant mortality rate"},{"$f":"'[1]Indicator Definitions'!E3","v":"Crude rate of deaths that occur in infants under the age of 1 year per 1,000 live births"},{"$f":"IF('[1]Indicator Definitions'!F3=0, \"\", '[1]Indicator Definitions'!F3)","v":""},{"$f":"'[1]Indicator Definitions'!G3","v":"Crude rate of deaths that occur in infants under the age of 1 year per 1,000 live births. Numerator: Office for National Statistics death registrations in infants under the age of 1 year for the years used by area of residence. Denominator: Office for National Statistics live birth registrations for the years used by area of residence\n"},{"$f":"IF('[1]Indicator Definitions'!H3=0, \"\", '[1]Indicator Definitions'!H3)","v":"This uses the Primary Care Mortality database and the information recorded when deaths are certified and registered. Death certification is completed by the attending doctor who must have seen the deceased during the last 2 weeks of life.  Death registration should occur within 5 days of the date of death. Registration may be delayed when a death certificate cannot be issued immediately, from referral to the coroner.  Our statistics are based on registration, representing deaths registered within the respective calendar year. "},{"$f":"IF('[1]Indicator Definitions'!I3=0, \"\", '[1]Indicator Definitions'!I3)","v":"Annual August"},{"$f":"'[1]Indicator Definitions'!L3","v":"PCMD, ONS, NHS Digital"},"N"]
[{"$f":"'[1]Indicator Definitions'!A4","v":"S06"},{"$f":"'[1]Indicator Definitions'!B4","v":"Starting Well"},{"$f":"'[1]Indicator Definitions'!C4","v":"Birth statistics"},{"$f":"'[1]Indicator Definitions'!D4","v":"Low birth weight"},{"$f":"'[1]Indicator Definitions'!E4","v":"The percentage of live births with low birth weight"},{"$f":"IF('[1]Indicator Definitions'!F4=0, \"\", '[1]Indicator Definitions'!F4)","v":"2500 grams or less"},{"$f":"'[1]Indicator Definitions'!G4","v":"The percentage of live births with low birth weight or very low birth weight. Numerator: total live births categorised as low birth weight (2500 grams or less) OR total live births categorised as very low birth weight (1500 grams or less) for the years used by area of residence. Denominator: total live births (excluding stillborn) for the years used by area of residence.\n"},{"$f":"IF('[1]Indicator Definitions'!H4=0, \"\", '[1]Indicator Definitions'!H4)","v":"This uses the information collected at birth registration, representing births occurring within the calendar year and some late registrations from the previous year. Birth registration is legally required within 42 days and most information is typically supplied to registrars by parents. Birthweight is received by NHS notification to the registrar by the hospital where birth took place or by midwife or doctor attending the birth."},{"$f":"IF('[1]Indicator Definitions'!I4=0, \"\", '[1]Indicator Definitions'!I4)","v":"Annual August"},{"$f":"'[1]Indicator Definitions'!L4","v":"ONS, NHS Digital"},"N"]
[{"$f":"'[1]Indicator Definitions'!A5","v":"S26"},{"$f":"'[1]Indicator Definitions'!B5","v":"Starting Well"},{"$f":"'[1]Indicator Definitions'!C5","v":"Birth statistics"},{"$f":"'[1]Indicator Definitions'!D5","v":"Teenage conceptions"},{"$f":"'[1]Indicator Definitions'!E5","v":"Rate per 1,000 15-17 year olds"},{"$f":"IF('[1]Indicator Definitions'!F5=0, \"\", '[1]Indicator Definitions'!F5)","v":""},{"$f":"'[1]Indicator Definitions'!G5","v":"Conceptions in women aged under 18 per 1,000 females aged 15-17.  Numerator: Number of pregnancies that occur in women aged under 18 and result in either one or more live or still births or a legal abortion under the Abortion Act 1967. Denominator: Mid-year population estimates for the relevant age group and for the years used by area of residence."},{"$f":"IF('[1]Indicator Definitions'!H5=0, \"\", '[1]Indicator Definitions'!H5)","v":""},{"$f":"IF('[1]Indicator Definitions'!I5=0, \"\", '[1]Indicator Definitions'!I5)","v":"Annual September"},{"$f":"'[1]Indicator Definitions'!L5","v":"ONS"},"N"]
[{"$f":"'[1]Indicator Definitions'!A6","v":"S03"},{"$f":"'[1]Indicator Definitions'!B6","v":"Starting Well"},{"$f":"'[1]Indicator Definitions'!C6","v":"Demographics"},{"$f":"'[1]Indicator Definitions'!D6","v":"Children & young people aged 0-19 years"},{"$f":"'[1]Indicator Definitions'!E6","v":"Office for National Statistics mid-year estimates"},{"$f":"IF('[1]Indicator Definitions'!F6=0, \"\", '[1]Indicator Definitions'!F6)","v":"number and percentage of the relevant resident population"},{"$f":"'[1]Indicator Definitions'!G6","v":"Office for National Statistics mid-year estimates of the relevant resident population. Numerator: number of children in age group within each electoral ward. Denominator: number of children in age group within each Local Authority or Clinical Commissioning Group."},{"$f":"IF('[1]Indicator Definitions'!H6=0, \"\", '[1]Indicator Definitions'!H6)","v":"This uses the Office for National Statistics estimates that are produced annually by age and sex. This is available at a national, local authority and small area (lower layer super output area). \nThe national and local authority population estimates are derived using the cohort component method from the most recent census with adjustment for births, deaths and migration.\nThe small area estimates are derived using the ratio change and best fit method from the most recent census; past releases have used patient register and child benefit data. \n"},{"$f":"IF('[1]Indicator Definitions'!I6=0, \"\", '[1]Indicator Definitions'!I6)","v":"Annual October"},{"$f":"'[1]Indicator Definitions'!L6","v":" "},"N"]
[{"$f":"'[1]Indicator Definitions'!A7","v":"S02"},{"$f":"'[1]Indicator Definitions'!B7","v":"Starting Well"},{"$f":"'[1]Indicator Definitions'!C7","v":"Demographics"},{"$f":"'[1]Indicator Definitions'!D7","v":"Children aged 0-4 years"},{"$f":"'[1]Indicator Definitions'!E7","v":"Office for National Statistics mid-year estimates"},{"$f":"IF('[1]Indicator Definitions'!F7=0, \"\", '[1]Indicator Definitions'!F7)","v":"number and percentage of the relevant resident population"},{"$f":"'[1]Indicator Definitions'!G7","v":"Office for National Statistics mid-year estimates of the relevant resident population. Numerator: number of children in age group within each electoral ward. Denominator: number of children in age group within each Local Authority or Clinical Commissioning Group."},{"$f":"IF('[1]Indicator Definitions'!H7=0, \"\", '[1]Indicator Definitions'!H7)","v":"This uses the Office for National Statistics estimates that are produced annually by age and sex. This is available at a national, local authority and small area (lower layer super output area). \nThe national and local authority population estimates are derived using the cohort component method from the most recent census with adjustment for births, deaths and migration.\nThe small area estimates are derived using the ratio change and best fit method from the most recent census; past releases have used patient register and child benefit data. \n"},{"$f":"IF('[1]Indicator Definitions'!I7=0, \"\", '[1]Indicator Definitions'!I7)","v":"Annual October"},{"$f":"'[1]Indicator Definitions'!L7","v":"ONS"},"N"]
[{"$f":"'[1]Indicator Definitions'!A8","v":"S01"},{"$f":"'[1]Indicator Definitions'!B8","v":"Starting Well"},{"$f":"'[1]Indicator Definitions'!C8","v":"Demographics"},{"$f":"'[1]Indicator Definitions'!D8","v":"Income deprivation affecting children (IDACI)"},{"$f":"'[1]Indicator Definitions'!E8","v":"The percentage of children aged 0-15 years living in income deprived households"},{"$f":"IF('[1]Indicator Definitions'!F8=0, \"\", '[1]Indicator Definitions'!F8)","v":""},{"$f":"'[1]Indicator Definitions'!G8","v":"The percentage of children aged 0-15 years living in income deprived households. Families that either receive Income Support or income-based Jobseekers Allowance or Employment and Support Allowance or Pension Credit (Guarantee) or Working Tax Credit or Child Tax Credit with an equivalised income below 60 per cent of the national median."},{"$f":"IF('[1]Indicator Definitions'!H8=0, \"\", '[1]Indicator Definitions'!H8)","v":"The Indices of Deprivation 2015 have been constructed for the Department for Communities and Local Government (DCLG) by Oxford Consultants for Social Inclusion (OCSI)."},{"$f":"IF('[1]Indicator Definitions'!I8=0, \"\", '[1]Indicator Definitions'!I8)","v":"2015-09-01"},{"$f":"'[1]Indicator Definitions'!L8","v":"DCLG"},"N"]
[{"$f":"'[1]Indicator Definitions'!A9","v":"S25"},{"$f":"'[1]Indicator Definitions'!B9","v":"Starting Well"},{"$f":"'[1]Indicator Definitions'!C9","v":"Demographics"},{"$f":"'[1]Indicator Definitions'!D9","v":"Population projections: Children & young people aged 0-19 years"},{"$f":"'[1]Indicator Definitions'!E9","v":"Office for National Statistics 2016-based projections"},{"$f":"IF('[1]Indicator Definitions'!F9=0, \"\", '[1]Indicator Definitions'!F9)","v":"KCC housing-led forecast (October 2018)"},{"$f":"'[1]Indicator Definitions'!G9","v":"Forecasted mid-year estimates of the relevant resident population. Two different forecasts are shown:  the Office for National Statistics forecasts & KCC's own housing-led forecasts.  The KCC forecasts take account of housing plans, which are not included within the ONS projections."},{"$f":"IF('[1]Indicator Definitions'!H9=0, \"\", '[1]Indicator Definitions'!H9)","v":""},{"$f":"IF('[1]Indicator Definitions'!I9=0, \"\", '[1]Indicator Definitions'!I9)","v":"Annual August/October"},{"$f":"'[1]Indicator Definitions'!L9","v":"ONS, KCC"},"N"]
[{"$f":"'[1]Indicator Definitions'!A10","v":"S24"},{"$f":"'[1]Indicator Definitions'!B10","v":"Starting Well"},{"$f":"'[1]Indicator Definitions'!C10","v":"Demographics"},{"$f":"'[1]Indicator Definitions'!D10","v":"Population projections: Children aged 0-4 years"},{"$f":"'[1]Indicator Definitions'!E10","v":"Office for National Statistics 2016-based projections"},{"$f":"IF('[1]Indicator Definitions'!F10=0, \"\", '[1]Indicator Definitions'!F10)","v":"KCC housing-led forecast (October 2018)"},{"$f":"'[1]Indicator Definitions'!G10","v":"Forecasted mid-year estimates of the relevant resident population. Two different forecasts are shown:  the Office for National Statistics forecasts & KCC's own housing-led forecasts.  The KCC forecasts take account of housing plans, which are not included within the ONS projections."},{"$f":"IF('[1]Indicator Definitions'!H10=0, \"\", '[1]Indicator Definitions'!H10)","v":""},{"$f":"IF('[1]Indicator Definitions'!I10=0, \"\", '[1]Indicator Definitions'!I10)","v":"Annual August/October"},{"$f":"'[1]Indicator Definitions'!L10","v":"ONS, KCC"},"N"]
[{"$f":"'[1]Indicator Definitions'!A11","v":"S10"},{"$f":"'[1]Indicator Definitions'!B11","v":"Starting Well"},{"$f":"'[1]Indicator Definitions'!C11","v":"Healthcare usage"},{"$f":"'[1]Indicator Definitions'!D11","v":"Accident & Emergency attendances in children & young people aged 0-19 years"},{"$f":"'[1]Indicator Definitions'!E11","v":"Crude rate per 1,000 children and young people aged 0-19 years"},{"$f":"IF('[1]Indicator Definitions'!F11=0, \"\", '[1]Indicator Definitions'!F11)","v":""},{"$f":"'[1]Indicator Definitions'!G11","v":"Crude rate of accident and emergency attendances per 1,000 relevant resident population. Numerator: total number of accident and emergency attendances using age at activity date for the years used by area of residence. This includes all department types, including; consultant led 24-hour services, speciality services (e.g. ophthalmology & dental) and minor injury unit. Excludes NHS walk in centres. Attendance category 1. Denominator: mid-year population estimates for the relevant age group and for the years used by area of residence.\n"},{"$f":"IF('[1]Indicator Definitions'!H11=0, \"\", '[1]Indicator Definitions'!H11)","v":"Public Health England caveat their use of the Hospital Episode Statistics dataset “which has a number of continuing issues regarding quality and coverage of certain key fields. Completeness of data by provider varies, overall completeness when compared to the weekly A&E sit reps is around 86%”"},{"$f":"IF('[1]Indicator Definitions'!I11=0, \"\", '[1]Indicator Definitions'!I11)","v":"Annual October"},{"$f":"'[1]Indicator Definitions'!L11","v":"Hospital Episode Statistics (HES), NHS Digital, ONS"},"N"]
[{"$f":"'[1]Indicator Definitions'!A12","v":"S11"},{"$f":"'[1]Indicator Definitions'!B12","v":"Starting Well"},{"$f":"'[1]Indicator Definitions'!C12","v":"Healthcare usage"},{"$f":"'[1]Indicator Definitions'!D12","v":"Elective hospital admissions in children aged 0-4 years"},{"$f":"'[1]Indicator Definitions'!E12","v":"Crude rate per 1,000 children aged 0-4 years"},{"$f":"IF('[1]Indicator Definitions'!F12=0, \"\", '[1]Indicator Definitions'!F12)","v":""},{"$f":"'[1]Indicator Definitions'!G12","v":"Crude rate of elective hospital admissions per 1,000 relevant resident population. Numerator: total number of elective hospital admissions (admission method 1* & FCE sequence 1) using age at activity date for the years used by area of residence. Denominator: mid-year population estimates for the relevant age group and for the years used by area of residence.\n"},{"$f":"IF('[1]Indicator Definitions'!H12=0, \"\", '[1]Indicator Definitions'!H12)","v":"Elective hospital admissions represent an admission planned in advance, unlike an emergency hospital admission. "},{"$f":"IF('[1]Indicator Definitions'!I12=0, \"\", '[1]Indicator Definitions'!I12)","v":"Annual October"},{"$f":"'[1]Indicator Definitions'!L12","v":"Hospital Episode Statistics (HES), NHS Digital, ONS"},"N"]
[{"$f":"'[1]Indicator Definitions'!A13","v":"S12"},{"$f":"'[1]Indicator Definitions'!B13","v":"Starting Well"},{"$f":"'[1]Indicator Definitions'!C13","v":"Healthcare usage"},{"$f":"'[1]Indicator Definitions'!D13","v":"Elective hospital admissions in children and young people aged 0-19 years"},{"$f":"'[1]Indicator Definitions'!E13","v":"Crude rate per 1,000 children and young people aged 0-19 years"},{"$f":"IF('[1]Indicator Definitions'!F13=0, \"\", '[1]Indicator Definitions'!F13)","v":""},{"$f":"'[1]Indicator Definitions'!G13","v":"Crude rate of elective hospital admissions per 1,000 relevant resident population.\nNumerator: total number of elective hospital admissions (admission method 1* & FCE sequence 1) using age at activity date for the years used by area of residence. \nDenominator: mid-year population estimates for the relevant age group and for the years used by area of residence.\n"},{"$f":"IF('[1]Indicator Definitions'!H13=0, \"\", '[1]Indicator Definitions'!H13)","v":"Elective hospital admissions represent an admission planned in advance, unlike an emergency hospital admission. "},{"$f":"IF('[1]Indicator Definitions'!I13=0, \"\", '[1]Indicator Definitions'!I13)","v":"Annual October"},{"$f":"'[1]Indicator Definitions'!L13","v":"Hospital Episode Statistics (HES), NHS Digital, ONS"},"N"]
[{"$f":"'[1]Indicator Definitions'!A14","v":"S16"},{"$f":"'[1]Indicator Definitions'!B14","v":"Starting Well"},{"$f":"'[1]Indicator Definitions'!C14","v":"Healthcare usage"},{"$f":"'[1]Indicator Definitions'!D14","v":"Emergency hospital admissions caused by unintentional and deliberate injuries in children aged 0-14 years"},{"$f":"'[1]Indicator Definitions'!E14","v":"Crude rate per 10,000 children and young people aged 0-14"},{"$f":"IF('[1]Indicator Definitions'!F14=0, \"\", '[1]Indicator Definitions'!F14)","v":"ICD 10: S00-T79, V01-Y36"},{"$f":"'[1]Indicator Definitions'!G14","v":"Crude rate of emergency hospital admissions with diagnostic codes for injury and other adverse events per 10,000 relevant resident population. Numerator: total number of emergency hospital admissions (admission method 2* & FCE sequence 1) with diagnostic codes for injury and other adverse event (ICD 10: S00-T79and/or V01-Y36 in any diagnostic field) using age at activity date for the years used by area of residence. Denominator: mid-year population estimates for the relevant age group and for the years used by area of residence.\n"},{"$f":"IF('[1]Indicator Definitions'!H14=0, \"\", '[1]Indicator Definitions'!H14)","v":"Injuries are a leading cause of premature mortality for children and young people. Use of the external cause codes V01-Y36 would include admissions due to symptoms following an external cause event.  There may be variation in hospital admission clinical coding. This represents Kent residents attending both Kent and non-Kent providers."},{"$f":"IF('[1]Indicator Definitions'!I14=0, \"\", '[1]Indicator Definitions'!I14)","v":"Annual October"},{"$f":"'[1]Indicator Definitions'!L14","v":"Hospital Episode Statistics (HES), NHS Digital, ONS"},"N"]
[{"$f":"'[1]Indicator Definitions'!A15","v":"S15"},{"$f":"'[1]Indicator Definitions'!B15","v":"Starting Well"},{"$f":"'[1]Indicator Definitions'!C15","v":"Healthcare usage"},{"$f":"'[1]Indicator Definitions'!D15","v":"Emergency hospital admissions caused by unintentional and deliberate injuries in children aged 0-4 years"},{"$f":"'[1]Indicator Definitions'!E15","v":"Crude rate per 10,000 children and young people aged 0-4"},{"$f":"IF('[1]Indicator Definitions'!F15=0, \"\", '[1]Indicator Definitions'!F15)","v":"ICD 10: S00-T79, V01-Y36"},{"$f":"'[1]Indicator Definitions'!G15","v":"Crude rate of emergency hospital admissions with diagnostic codes for injury and other adverse events per 10,000 relevant resident population. Numerator: total number of emergency hospital admissions (admission method 2* & FCE sequence 1) with diagnostic codes for injury and other adverse event (ICD 10: S00-T79and/or V01-Y36 in any diagnostic field) using age at activity date for the years used by area of residence. Denominator: mid-year population estimates for the relevant age group and for the years used by area of residence.\n"},{"$f":"IF('[1]Indicator Definitions'!H15=0, \"\", '[1]Indicator Definitions'!H15)","v":"Injuries are a leading cause of premature mortality for children and young people. Use of the external cause codes V01-Y36 would include admissions due to symptoms following an external cause event.  There may be variation in hospital admission clinical coding. This represents Kent residents attending both Kent and non-Kent providers."},{"$f":"IF('[1]Indicator Definitions'!I15=0, \"\", '[1]Indicator Definitions'!I15)","v":"Annual October"},{"$f":"'[1]Indicator Definitions'!L15","v":"Hospital Episode Statistics (HES), NHS Digital, ONS"},"N"]
[{"$f":"'[1]Indicator Definitions'!A16","v":"S17"},{"$f":"'[1]Indicator Definitions'!B16","v":"Starting Well"},{"$f":"'[1]Indicator Definitions'!C16","v":"Healthcare usage"},{"$f":"'[1]Indicator Definitions'!D16","v":"Emergency hospital admissions caused by unintentional and deliberate injuries in children aged 15-24 years"},{"$f":"'[1]Indicator Definitions'!E16","v":"Crude rate per 10,000 children and young people aged 15-24"},{"$f":"IF('[1]Indicator Definitions'!F16=0, \"\", '[1]Indicator Definitions'!F16)","v":"ICD 10: S00-T79, V01-Y36"},{"$f":"'[1]Indicator Definitions'!G16","v":"Crude rate of emergency hospital admissions with diagnostic codes for injury and other adverse events per 10,000 relevant resident population. Numerator: total number of emergency hospital admissions (admission method 2* & FCE sequence 1) with diagnostic codes for injury and other adverse event (ICD 10: S00-T79and/or V01-Y36 in any diagnostic field) using age at activity date for the years used by area of residence. Denominator: mid-year population estimates for the relevant age group and for the years used by area of residence.\n"},{"$f":"IF('[1]Indicator Definitions'!H16=0, \"\", '[1]Indicator Definitions'!H16)","v":"Injuries are a leading cause of premature mortality for children and young people. Use of the external cause codes V01-Y36 would include admissions due to symptoms following an external cause event.  There may be variation in hospital admission clinical coding. This represents Kent residents attending both Kent and non-Kent providers."},{"$f":"IF('[1]Indicator Definitions'!I16=0, \"\", '[1]Indicator Definitions'!I16)","v":"Annual October"},{"$f":"'[1]Indicator Definitions'!L16","v":"Hospital Episode Statistics (HES), NHS Digital, ONS"},"N"]
[{"$f":"'[1]Indicator Definitions'!A17","v":"S18"},{"$f":"'[1]Indicator Definitions'!B17","v":"Starting Well"},{"$f":"'[1]Indicator Definitions'!C17","v":"Healthcare usage"},{"$f":"'[1]Indicator Definitions'!D17","v":"Emergency hospital admissions for asthma in children and young people aged 0-19 years"},{"$f":"'[1]Indicator Definitions'!E17","v":"Crude rate per 100,000 children and young people aged 0-19"},{"$f":"IF('[1]Indicator Definitions'!F17=0, \"\", '[1]Indicator Definitions'!F17)","v":"ICD 10: J45-J46 (primary diagnosis)"},{"$f":"'[1]Indicator Definitions'!G17","v":"Crude rate of emergency hospital admissions with diagnostic codes for asthma per 100,000 relevant resident population. Numerator: total number of emergency hospital admissions (admission method 2* & FCE sequence 1) with diagnostic codes for asthma (ICD 10: J45 & J46 in primary) using age at activity date for the years used by area of residence. Denominator: mid-year population estimates for the relevant age group and for the years used by area of residence.\n"},{"$f":"IF('[1]Indicator Definitions'!H17=0, \"\", '[1]Indicator Definitions'!H17)","v":"This represents Kent residents attending both Kent and non-Kent providers."},{"$f":"IF('[1]Indicator Definitions'!I17=0, \"\", '[1]Indicator Definitions'!I17)","v":"Annual October"},{"$f":"'[1]Indicator Definitions'!L17","v":"Hospital Episode Statistics (HES), NHS Digital, ONS"},"N"]
[{"$f":"'[1]Indicator Definitions'!A18","v":"S21"},{"$f":"'[1]Indicator Definitions'!B18","v":"Starting Well"},{"$f":"'[1]Indicator Definitions'!C18","v":"Healthcare usage"},{"$f":"'[1]Indicator Definitions'!D18","v":"Hospital admissions for self-harm in young people aged 10-24 years"},{"$f":"'[1]Indicator Definitions'!E18","v":"Age standardised rate per 100,000 children and young people aged 10-24 years"},{"$f":"IF('[1]Indicator Definitions'!F18=0, \"\", '[1]Indicator Definitions'!F18)","v":"ICD 10: X60-X84 (main recorded cause)"},{"$f":"'[1]Indicator Definitions'!G18","v":"Age standardised rate of hospital admissions for self-harm in children aged 10-24 per 100,000 relevant resident population. Numerator: total number of hospital admissions (FCE sequence 1) with a self-harm main recorded cause (ICD 10: X60-X84) using age at activity date for the years used by area of residence. Denominator: mid-year population estimates for children aged 10-24 for the years used by area of residence.\n"},{"$f":"IF('[1]Indicator Definitions'!H18=0, \"\", '[1]Indicator Definitions'!H18)","v":"This represents Kent residents attending both Kent and non-Kent providers."},{"$f":"IF('[1]Indicator Definitions'!I18=0, \"\", '[1]Indicator Definitions'!I18)","v":"Annual October"},{"$f":"'[1]Indicator Definitions'!L18","v":"Hospital Episode Statistics (HES), NHS Digital, ONS"},"N"]
[{"$f":"'[1]Indicator Definitions'!A19","v":"S13"},{"$f":"'[1]Indicator Definitions'!B19","v":"Starting Well"},{"$f":"'[1]Indicator Definitions'!C19","v":"Healthcare usage"},{"$f":"'[1]Indicator Definitions'!D19","v":"Emergency hospital admissions in children aged 0-4 years"},{"$f":"'[1]Indicator Definitions'!E19","v":"Crude rate per 1,000 children aged 0-4 years"},{"$f":"IF('[1]Indicator Definitions'!F19=0, \"\", '[1]Indicator Definitions'!F19)","v":""},{"$f":"'[1]Indicator Definitions'!G19","v":"Crude rate of emergency hospital admissions per 1,000 relevant resident population. Numerator: total number of emergency hospital admissions (admission method 2* & FCE sequence 1) using age at activity date for the years used by area of residence.  Denominator: mid-year population estimates for the relevant age group and for the years used by area of residence.\n"},{"$f":"IF('[1]Indicator Definitions'!H19=0, \"\", '[1]Indicator Definitions'!H19)","v":"Elective hospital admissions represent an admission planned in advance, unlike an emergency hospital admission. "},{"$f":"IF('[1]Indicator Definitions'!I19=0, \"\", '[1]Indicator Definitions'!I19)","v":"Annual October"},{"$f":"'[1]Indicator Definitions'!L19","v":"Hospital Episode Statistics (HES), NHS Digital, ONS"},"N"]
[{"$f":"'[1]Indicator Definitions'!A20","v":"S14"},{"$f":"'[1]Indicator Definitions'!B20","v":"Starting Well"},{"$f":"'[1]Indicator Definitions'!C20","v":"Healthcare usage"},{"$f":"'[1]Indicator Definitions'!D20","v":"Emergency hospital admissions in children and young people aged 0-19 years"},{"$f":"'[1]Indicator Definitions'!E20","v":"Crude rate per 1,000 children and young people aged 0-19 years"},{"$f":"IF('[1]Indicator Definitions'!F20=0, \"\", '[1]Indicator Definitions'!F20)","v":""},{"$f":"'[1]Indicator Definitions'!G20","v":"Crude rate of emergency hospital admissions per 1,000 relevant resident population. Numerator: total number of emergency hospital admissions (admission method 2* & FCE sequence 1) using age at activity date for the years used by area of residence. Denominator: mid-year population estimates for the relevant age group and for the years used by area of residence.\n"},{"$f":"IF('[1]Indicator Definitions'!H20=0, \"\", '[1]Indicator Definitions'!H20)","v":"Elective hospital admissions represent an admission planned in advance, unlike an emergency hospital admission. "},{"$f":"IF('[1]Indicator Definitions'!I20=0, \"\", '[1]Indicator Definitions'!I20)","v":"Annual October"},{"$f":"'[1]Indicator Definitions'!L20","v":"Hospital Episode Statistics (HES), NHS Digital, ONS"},"N"]
[{"$f":"'[1]Indicator Definitions'!A21","v":"S35"},{"$f":"'[1]Indicator Definitions'!B21","v":"Starting Well"},{"$f":"'[1]Indicator Definitions'!C21","v":"Healthcare usage"},{"$f":"'[1]Indicator Definitions'!D21","v":"Hospital admissions for gastroenteritis in infants under 1"},{"$f":"'[1]Indicator Definitions'!E21","v":"Crude rate per 10,000 resident population"},{"$f":"IF('[1]Indicator Definitions'!F21=0, \"\", '[1]Indicator Definitions'!F21)","v":"ICD 10: A020, A04-5, A072, A080-1, A083-5, A09, K520-2, K528-9 (primary diagnosis)"},{"$f":"'[1]Indicator Definitions'!G21","v":"Crude rate of emergency hospital admissions for gastroenteritis in infants aged under one year per 10,000 relevant resident population. Numerator: total number of emergency hospital admissions (admission method 2* & FAE sequence 1) with a primary diagnosis code for respiratory tract infection (ICD 10: A020, A04-5, A072, A080-1, A083-5, A09, K520-2, K528-9) using age at activity date for the years used by area of residence. Denominator: mid-year population estimates for infants aged under 1 for the years used by area of residence."},{"$f":"IF('[1]Indicator Definitions'!H21=0, \"\", '[1]Indicator Definitions'!H21)","v":""},{"$f":"IF('[1]Indicator Definitions'!I21=0, \"\", '[1]Indicator Definitions'!I21)","v":"Annual October"},{"$f":"'[1]Indicator Definitions'!L21","v":"Hospital Episode Statistics (HES), NHS Digital, ONS"},"N"]
[{"$f":"'[1]Indicator Definitions'!A22","v":"S34"},{"$f":"'[1]Indicator Definitions'!B22","v":"Starting Well"},{"$f":"'[1]Indicator Definitions'!C22","v":"Healthcare usage"},{"$f":"'[1]Indicator Definitions'!D22","v":"Hospital admissions for respiratory tract infections in infants under 1"},{"$f":"'[1]Indicator Definitions'!E22","v":"Crude rate per 10,000 resident population"},{"$f":"IF('[1]Indicator Definitions'!F22=0, \"\", '[1]Indicator Definitions'!F22)","v":"ICD 10: J10, J110-1, J12-6, J180-1, J189, J21 (primary diagnosis)"},{"$f":"'[1]Indicator Definitions'!G22","v":"Crude rate of emergency hospital admissions for respiratory tract infections in infants aged under one year per 10,000 relevant resident population. Numerator: total number of emergency hospital admissions (admission method 2* & FCE sequence 1) with a primary diagnosis code for respiratory tract infection (ICD 10: J10, J110-1, J12-6, J180-1, J189, J21) using age at activity date for the years used by area of residence. Denominator: mid-year population estimates for infants aged under 1 for the years used by area of residence."},{"$f":"IF('[1]Indicator Definitions'!H22=0, \"\", '[1]Indicator Definitions'!H22)","v":""},{"$f":"IF('[1]Indicator Definitions'!I22=0, \"\", '[1]Indicator Definitions'!I22)","v":"Annual October"},{"$f":"'[1]Indicator Definitions'!L22","v":"Hospital Episode Statistics (HES), NHS Digital, ONS"},"N"]
[{"$f":"'[1]Indicator Definitions'!A23","v":"S09"},{"$f":"'[1]Indicator Definitions'!B23","v":"Starting Well"},{"$f":"'[1]Indicator Definitions'!C23","v":"Healthcare Use"},{"$f":"'[1]Indicator Definitions'!D23","v":"Accident & Emergency attendances in children aged 0-4 years"},{"$f":"'[1]Indicator Definitions'!E23","v":"Crude rate per 1,000 children aged 0-4 years"},{"$f":"IF('[1]Indicator Definitions'!F23=0, \"\", '[1]Indicator Definitions'!F23)","v":""},{"$f":"'[1]Indicator Definitions'!G23","v":"Crude rate of accident and emergency attendances per 1,000 relevant resident population. Numerator: total number of accident and emergency attendances using age at activity date for the years used by area of residence. This includes all department types, including; consultant led 24-hour services, speciality services (e.g. ophthalmology & dental) and minor injury unit. Excludes NHS walk in centres. Attendance category 1. Denominator: mid-year population estimates for the relevant age group and for the years used by area of residence.\n"},{"$f":"IF('[1]Indicator Definitions'!H23=0, \"\", '[1]Indicator Definitions'!H23)","v":"Public Health England caveat their use of the Hospital Episode Statistics dataset “which has a number of continuing issues regarding quality and coverage of certain key fields. Completeness of data by provider varies, overall completeness when compared to the weekly A&E sit reps is around 86%”"},{"$f":"IF('[1]Indicator Definitions'!I23=0, \"\", '[1]Indicator Definitions'!I23)","v":"Annual October"},{"$f":"'[1]Indicator Definitions'!L23","v":"Hospital Episode Statistics (HES), NHS Digital, ONS"},"N"]
[{"$f":"'[1]Indicator Definitions'!A24","v":"S27"},{"$f":"'[1]Indicator Definitions'!B24","v":"Starting Well"},{"$f":"'[1]Indicator Definitions'!C24","v":"Wellbeing"},{"$f":"'[1]Indicator Definitions'!D24","v":"Breastfeeding at 6-8 weeks"},{"$f":"'[1]Indicator Definitions'!E24","v":"Percentage of babies recorded as breastfed at 6-8 week health visitor check"},{"$f":"IF('[1]Indicator Definitions'!F24=0, \"\", '[1]Indicator Definitions'!F24)","v":"as a percentage of all those due a check"},{"$f":"'[1]Indicator Definitions'!G24","v":"Percentage of infants that are totally or partially breastfed at age 6-8 weeks. Totally breastfed is defined as infants who are exclusively receiving breast milk at 6-8 weeks of age - that is, they are not receiving formula milk, any other liquids or food. Partially breastfed is defined as infants who are currently receiving breast milk at 6-8 weeks of age and who are also receiving formula milk or any other liquids or food. Not at all breastfed is defined as infants who are not currently receiving any breast milk at 6-8 weeks of age. Numerator: Number of infants recorded as being totally breastfed at 6-8 weeks and the number of infants recorded as being partially breastfed. Denominator: Number of infants due a 6-8 weeks check. "},{"$f":"IF('[1]Indicator Definitions'!H24=0, \"\", '[1]Indicator Definitions'!H24)","v":""},{"$f":"IF('[1]Indicator Definitions'!I24=0, \"\", '[1]Indicator Definitions'!I24)","v":"Annual June"},{"$f":"'[1]Indicator Definitions'!L24","v":"KCHFT"},"N"]
[{"$f":"'[1]Indicator Definitions'!A25","v":"S36"},{"$f":"'[1]Indicator Definitions'!B25","v":"Starting Well"},{"$f":"'[1]Indicator Definitions'!C25","v":"Wellbeing"},{"$f":"'[1]Indicator Definitions'!D25","v":"New born visit breastfeeding"},{"$f":"'[1]Indicator Definitions'!E25","v":"Percentage of babies recorded as being breastfed at a new-born visit"},{"$f":"IF('[1]Indicator Definitions'!F25=0, \"\", '[1]Indicator Definitions'!F25)","v":"as a percentage of all those due a new born visit"},{"$f":"'[1]Indicator Definitions'!G25","v":"Percentage of infants that are totally or partially breastfed at new born visit. Totally breastfed is defined as infants who are exclusively receiving breast milk at new born visit, - that is, they are not receiving formula milk, any other liquids or food. Partially breastfed is defined as infants who are currently receiving breast milk at  new born visit and who are also receiving formula milk or any other liquids or food. Not at all breastfed is defined as infants who are not currently receiving any breast milk at new born visit. Numerator: Number of infants recorded as being totally breastfed at new born visit and the number of infants recorded as being partially breastfed. Denominator: Number of infants due a new born visit"},{"$f":"IF('[1]Indicator Definitions'!H25=0, \"\", '[1]Indicator Definitions'!H25)","v":""},{"$f":"IF('[1]Indicator Definitions'!I25=0, \"\", '[1]Indicator Definitions'!I25)","v":"Annual June"},{"$f":"'[1]Indicator Definitions'!L25","v":"KCHFT"},"N"]
[{"$f":"'[1]Indicator Definitions'!A26","v":"S31"},{"$f":"'[1]Indicator Definitions'!B26","v":"Starting Well"},{"$f":"'[1]Indicator Definitions'!C26","v":"Wellbeing"},{"$f":"'[1]Indicator Definitions'!D26","v":"Children achieving a good level of development at the end of reception year"},{"$f":"'[1]Indicator Definitions'!E26","v":"Percentage reaching a good level of development at the end of the Early Years Foundation Stage (EYFS) as a percentage of all eligible children"},{"$f":"IF('[1]Indicator Definitions'!F26=0, \"\", '[1]Indicator Definitions'!F26)","v":""},{"$f":"'[1]Indicator Definitions'!G26","v":"Children defined as having reached a good level of development at the end of the Early Years Foundation Stage (EYFS) as a percentage of all eligible children.  Children are defined as having reached a good level of development if they achieve at least the expected level in the early learning goals in the prime areas of learning (personal, social and emotional development; physical development; and communication and language) and the early learning goals in the specific areas of mathematics and literacy."},{"$f":"IF('[1]Indicator Definitions'!H26=0, \"\", '[1]Indicator Definitions'!H26)","v":""},{"$f":"IF('[1]Indicator Definitions'!I26=0, \"\", '[1]Indicator Definitions'!I26)","v":"Annual September"},{"$f":"'[1]Indicator Definitions'!L26","v":"KCC, Management Information Unit"},"N"]
[{"$f":"'[1]Indicator Definitions'!A27","v":"S07"},{"$f":"'[1]Indicator Definitions'!B27","v":"Starting Well"},{"$f":"'[1]Indicator Definitions'!C27","v":"Wellbeing"},{"$f":"'[1]Indicator Definitions'!D27","v":"Excess weight in reception year children aged 4-5 years"},{"$f":"'[1]Indicator Definitions'!E27","v":"Percentage of reception year pupils measured as overweight or obese"},{"$f":"IF('[1]Indicator Definitions'!F27=0, \"\", '[1]Indicator Definitions'!F27)","v":"Body Mass Index greater than or equal to the 85th centile of the UK90 growth reference according to age and sex"},{"$f":"'[1]Indicator Definitions'!G27","v":"Prevalence of overweight and obesity as part of the National Child Measurement programme. Numerator: total number of pupils classified as overweight or obese (BMI greater than or equal to the 85th centile of the UK90 growth reference according to age and sex) in reception year children (4-5 years) OR year six children (10-11 years) for the years used by area of residence. Denominator: total number of pupils measured as part of the National Child Measurement programme within the respective year group for the years used by area of residence.\n"},{"$f":"IF('[1]Indicator Definitions'!H27=0, \"\", '[1]Indicator Definitions'!H27)","v":"The National Child Measurement Programme annually measures the height and weight of children in reception year  (4-5 years) and year six (10-11 years) in state maintained schools. The measurement process is overseen by trained healthcare professionals."},{"$f":"IF('[1]Indicator Definitions'!I27=0, \"\", '[1]Indicator Definitions'!I27)","v":"Annual October"},{"$f":"'[1]Indicator Definitions'!L27","v":"NCMP, NHS Digital"},"N"]
[{"$f":"'[1]Indicator Definitions'!A28","v":"S08"},{"$f":"'[1]Indicator Definitions'!B28","v":"Starting Well"},{"$f":"'[1]Indicator Definitions'!C28","v":"Wellbeing"},{"$f":"'[1]Indicator Definitions'!D28","v":"Excess weight in year six children aged 10-11 years"},{"$f":"'[1]Indicator Definitions'!E28","v":"Percentage of year six pupils measured as overweight or obese"},{"$f":"IF('[1]Indicator Definitions'!F28=0, \"\", '[1]Indicator Definitions'!F28)","v":"Body Mass Index greater than or equal to the 85th centile of the UK90 growth reference according to age and sex"},{"$f":"'[1]Indicator Definitions'!G28","v":"Prevalence of overweight and obesity as part of the National Child Measurement programme. Numerator: total number of pupils classified as overweight or obese (BMI greater than or equal to the 85th centile of the UK90 growth reference according to age and sex) in reception year children (4-5 years) OR year six children (10-11 years) for the years used by area of residence. Denominator: total number of pupils measured as part of the National Child Measurement programme within the respective year group for the years used by area of residence.\n"},{"$f":"IF('[1]Indicator Definitions'!H28=0, \"\", '[1]Indicator Definitions'!H28)","v":"The National Child Measurement Programme annually measures the height and weight of children in reception year  (4-5 years) and year six (10-11 years) in state maintained schools. The measurement process is overseen by trained healthcare professionals."},{"$f":"IF('[1]Indicator Definitions'!I28=0, \"\", '[1]Indicator Definitions'!I28)","v":"Annual October"},{"$f":"'[1]Indicator Definitions'!L28","v":"NCMP, NHS Digital"},"N"]
[{"$f":"'[1]Indicator Definitions'!A29","v":"S04"},{"$f":"'[1]Indicator Definitions'!B29","v":"Starting Well"},{"$f":"'[1]Indicator Definitions'!C29","v":"Wellbeing"},{"$f":"'[1]Indicator Definitions'!D29","v":"Life expectancy at birth, male"},{"$f":"'[1]Indicator Definitions'!E29","v":"Figures based on deaths registered and mid-year population estimates"},{"$f":"IF('[1]Indicator Definitions'!F29=0, \"\", '[1]Indicator Definitions'!F29)","v":"life expectancy in years calculated using the Public Health England calculator"},{"$f":"'[1]Indicator Definitions'!G29","v":"Life expectancy in years calculated using the Public Health England calculator. Numerator: death registrations for the years used by area of residence. Denominator: mid-year population estimates for the years used by area of residence.\n"},{"$f":"IF('[1]Indicator Definitions'!H29=0, \"\", '[1]Indicator Definitions'!H29)","v":"This is an estimate of the average number of years a new-born baby would survive if he or she experienced the particular area’s age specific mortality rates for that time period throughout his or her life. This uses death registrations, as survival from birth is based on death rates at every age. "},{"$f":"IF('[1]Indicator Definitions'!I29=0, \"\", '[1]Indicator Definitions'!I29)","v":"Annual October"},{"$f":"'[1]Indicator Definitions'!L29","v":"PCMD, ONS, PHE"},"N"]
[{"$f":"'[1]Indicator Definitions'!A30","v":"S22"},{"$f":"'[1]Indicator Definitions'!B30","v":"Starting Well"},{"$f":"'[1]Indicator Definitions'!C30","v":"Wellbeing"},{"$f":"'[1]Indicator Definitions'!D30","v":"Obesity in reception year children aged 4-5 years"},{"$f":"'[1]Indicator Definitions'!E30","v":"Percentage of reception year pupils measured as obese"},{"$f":"IF('[1]Indicator Definitions'!F30=0, \"\", '[1]Indicator Definitions'!F30)","v":"Body Mass Index greater than or equal to the 95th centile of the UK90 growth reference according to age and sex"},{"$f":"'[1]Indicator Definitions'!G30","v":"Prevalence of overweight and obesity as part of the National Child Measurement programme. Numerator: total number of pupils classified as overweight or obese (BMI greater than or equal to the 85th centile of the UK90 growth reference according to age and sex) in reception year children (4-5 years) OR year six children (10-11 years) for the years used by area of residence. Denominator: total number of pupils measured as part of the National Child Measurement programme within the respective year group for the years used by area of residence.\n"},{"$f":"IF('[1]Indicator Definitions'!H30=0, \"\", '[1]Indicator Definitions'!H30)","v":"The National Child Measurement Programme annually measures the height and weight of children in reception year  (4-5 years) and year six (10-11 years) in state maintained schools. The measurement process is overseen by trained healthcare professionals."},{"$f":"IF('[1]Indicator Definitions'!I30=0, \"\", '[1]Indicator Definitions'!I30)","v":"Annual October"},{"$f":"'[1]Indicator Definitions'!L30","v":"NCMP, NHS Digital"},"N"]
[{"$f":"'[1]Indicator Definitions'!A31","v":"S23"},{"$f":"'[1]Indicator Definitions'!B31","v":"Starting Well"},{"$f":"'[1]Indicator Definitions'!C31","v":"Wellbeing"},{"$f":"'[1]Indicator Definitions'!D31","v":"Obesity in year six children aged 10-11 years"},{"$f":"'[1]Indicator Definitions'!E31","v":"Percentage of year six pupils measured as obese"},{"$f":"IF('[1]Indicator Definitions'!F31=0, \"\", '[1]Indicator Definitions'!F31)","v":"Body Mass Index greater than or equal to the 95th centile of the UK90 growth reference according to age and sex"},{"$f":"'[1]Indicator Definitions'!G31","v":"Prevalence of overweight and obesity as part of the National Child Measurement programme. Numerator: total number of pupils classified as overweight or obese (BMI greater than or equal to the 85th centile of the UK90 growth reference according to age and sex) in reception year children (4-5 years) OR year six children (10-11 years) for the years used by area of residence. Denominator: total number of pupils measured as part of the National Child Measurement programme within the respective year group for the years used by area of residence.\n"},{"$f":"IF('[1]Indicator Definitions'!H31=0, \"\", '[1]Indicator Definitions'!H31)","v":"The National Child Measurement Programme annually measures the height and weight of children in reception year  (4-5 years) and year six (10-11 years) in state maintained schools. The measurement process is overseen by trained healthcare professionals."},{"$f":"IF('[1]Indicator Definitions'!I31=0, \"\", '[1]Indicator Definitions'!I31)","v":"Annual October"},{"$f":"'[1]Indicator Definitions'!L31","v":"NCMP, NHS Digital"},"N"]
[{"$f":"'[1]Indicator Definitions'!A32","v":"S30"},{"$f":"'[1]Indicator Definitions'!B32","v":"Starting Well"},{"$f":"'[1]Indicator Definitions'!C32","v":"Wellbeing"},{"$f":"'[1]Indicator Definitions'!D32","v":"Population vaccination coverage - Dtap/IPV/Hib (1 year old)"},{"$f":"IF('[1]Indicator Definitions'!E32=0, \"\", '[1]Indicator Definitions'!E32)","v":""},{"$f":"IF('[1]Indicator Definitions'!F32=0, \"\", '[1]Indicator Definitions'!F32)","v":"Percentage of eligible children having immunisation"},{"$f":"'[1]Indicator Definitions'!G32","v":"Children who received 3 doses of DTaP/IPV/Hib vaccine at any time by their first birthday as a percentage of all children whose first birthday falls within the time period.. Numerator: Total number of children whose first birthday falls within the time period who received 3 doses of DTaP/IPV/Hib at any time before their first birthday.. Denominator: Total number of children whose first birthday falls within the time period."},{"$f":"IF('[1]Indicator Definitions'!H32=0, \"\", '[1]Indicator Definitions'!H32)","v":""},{"$f":"IF('[1]Indicator Definitions'!I32=0, \"\", '[1]Indicator Definitions'!I32)","v":"Annual September"},{"$f":"'[1]Indicator Definitions'!L32","v":"NHS England, GP-level data modelled to Ward"},"N"]
[{"$f":"'[1]Indicator Definitions'!A33","v":"S29"},{"$f":"'[1]Indicator Definitions'!B33","v":"Starting Well"},{"$f":"'[1]Indicator Definitions'!C33","v":"Wellbeing"},{"$f":"'[1]Indicator Definitions'!D33","v":"Population vaccination coverage - MMR for two doses (5 years old)"},{"$f":"IF('[1]Indicator Definitions'!E33=0, \"\", '[1]Indicator Definitions'!E33)","v":""},{"$f":"IF('[1]Indicator Definitions'!F33=0, \"\", '[1]Indicator Definitions'!F33)","v":"Percentage of eligible children having immunisation"},{"$f":"'[1]Indicator Definitions'!G33","v":"Children who received two doses of MMR on or after their first birthday and at any time up to their fifth birthday as a percentage of all children whose fifth birthday falls within the time period. Numerator: Total number of children whose fifth birthday falls within the time period who received two doses of MMR on or after their first birthday and at any time before their fifth birthday. Denominator: Total number of children whose fifth birthday falls within the time period."},{"$f":"IF('[1]Indicator Definitions'!H33=0, \"\", '[1]Indicator Definitions'!H33)","v":""},{"$f":"IF('[1]Indicator Definitions'!I33=0, \"\", '[1]Indicator Definitions'!I33)","v":"Annual September"},{"$f":"'[1]Indicator Definitions'!L33","v":"NHS England, GP-level data modelled to Ward"},"N"]
[{"$f":"'[1]Indicator Definitions'!A34","v":"S33"},{"$f":"'[1]Indicator Definitions'!B34","v":"Starting Well"},{"$f":"'[1]Indicator Definitions'!C34","v":"Wellbeing"},{"$f":"'[1]Indicator Definitions'!D34","v":"Smoking status at time of delivery"},{"$f":"'[1]Indicator Definitions'!E34","v":"Percentage of mothers known to be smokers at the time of delivery as a percentage of all maternities"},{"$f":"IF('[1]Indicator Definitions'!F34=0, \"\", '[1]Indicator Definitions'!F34)","v":""},{"$f":"'[1]Indicator Definitions'!G34","v":"The number of mothers known to be smokers at the time of delivery as a percentage of all maternities. A maternity is defined as a pregnant woman who gives birth to one or more live or stillborn babies of at least 24 weeks gestation, where the baby is delivered by either a midwife or doctor at home or in a NHS hospital. Numerator:  Number of women known to smoke at time of delivery. Denominator: Number of maternities."},{"$f":"IF('[1]Indicator Definitions'!H34=0, \"\", '[1]Indicator Definitions'!H34)","v":""},{"$f":"IF('[1]Indicator Definitions'!I34=0, \"\", '[1]Indicator Definitions'!I34)","v":"Annual June"},{"$f":"'[1]Indicator Definitions'!L34","v":"PHE, NHS Digital"},"N"]
[{"$f":"'[1]Indicator Definitions'!A35","v":"S32"},{"$f":"'[1]Indicator Definitions'!B35","v":"Starting Well"},{"$f":"'[1]Indicator Definitions'!C35","v":"Wellbeing"},{"$f":"'[1]Indicator Definitions'!D35","v":"Tooth decay in children aged five"},{"$f":"'[1]Indicator Definitions'!E35","v":"The percentage of children at age 5 years (within the survey sample) who experienced decayed, missing or extracted teeth"},{"$f":"IF('[1]Indicator Definitions'!F35=0, \"\", '[1]Indicator Definitions'!F35)","v":""},{"$f":"'[1]Indicator Definitions'!G35","v":"Percentage of children with one or more obviously decayed, missing (due to decay) and filled teeth, derived from the  National Dental Epidemiology Programme for England: oral health survey of five-year-old children."},{"$f":"IF('[1]Indicator Definitions'!H35=0, \"\", '[1]Indicator Definitions'!H35)","v":""},{"$f":"IF('[1]Indicator Definitions'!I35=0, \"\", '[1]Indicator Definitions'!I35)","v":"2016-05-01"},{"$f":"'[1]Indicator Definitions'!L35","v":"Dental Public Health Epidemiology Programme for England: Oral health survey of five-year-old children"},"N"]
[{"$f":"'[1]Indicator Definitions'!A36","v":"L47"},{"$f":"'[1]Indicator Definitions'!B36","v":"Living Well"},{"$f":"'[1]Indicator Definitions'!C36","v":"Cancer"},{"$f":"'[1]Indicator Definitions'!D36","v":"Bowel cancer screening rate (60-74)"},{"$f":"'[1]Indicator Definitions'!E36","v":"Percentage of persons aged 60-74 screened for bowel cancer in the last 30 months"},{"$f":"IF('[1]Indicator Definitions'!F36=0, \"\", '[1]Indicator Definitions'!F36)","v":"modelled ward-level estimates"},{"$f":"'[1]Indicator Definitions'!G36","v":"Calculated from GP practice level data.  Numerator: Number of persons registered to a practice screened adequately in previous 30 months. Denominator: Number of eligible persons on last day of the review period.\n"},{"$f":"IF('[1]Indicator Definitions'!H36=0, \"\", '[1]Indicator Definitions'!H36)","v":"Data taken from the Open Exeter system"},{"$f":"IF('[1]Indicator Definitions'!I36=0, \"\", '[1]Indicator Definitions'!I36)","v":"Annual February"},{"$f":"'[1]Indicator Definitions'!L36","v":"Open Exeter"},"N"]
[{"$f":"'[1]Indicator Definitions'!A37","v":"L45"},{"$f":"'[1]Indicator Definitions'!B37","v":"Living Well"},{"$f":"'[1]Indicator Definitions'!C37","v":"Cancer"},{"$f":"'[1]Indicator Definitions'!D37","v":"Breast cancer screening rate"},{"$f":"'[1]Indicator Definitions'!E37","v":"Percentage of women aged 50-70 screened for breast cancer in the last 36 months"},{"$f":"IF('[1]Indicator Definitions'!F37=0, \"\", '[1]Indicator Definitions'!F37)","v":"modelled ward-level estimates"},{"$f":"'[1]Indicator Definitions'!G37","v":"Calculated from GP practice level data.  Numerator: Number of females registered to a practice screened adequately in previous 36 months. Denominator: Number of eligible females on last day of the review period.\n"},{"$f":"IF('[1]Indicator Definitions'!H37=0, \"\", '[1]Indicator Definitions'!H37)","v":"Data taken from the Open Exeter system"},{"$f":"IF('[1]Indicator Definitions'!I37=0, \"\", '[1]Indicator Definitions'!I37)","v":"Annual February"},{"$f":"'[1]Indicator Definitions'!L37","v":"Open Exeter"},"N"]
[{"$f":"'[1]Indicator Definitions'!A38","v":"L52"},{"$f":"'[1]Indicator Definitions'!B38","v":"Living Well"},{"$f":"'[1]Indicator Definitions'!C38","v":"Cancer"},{"$f":"'[1]Indicator Definitions'!D38","v":"Cancer registrations - all ages"},{"$f":"'[1]Indicator Definitions'!E38","v":"All malignant cancers (ICD10 C00-C97) excluding Basal Cell Carcinoma of the skin (ICD10 C44, M8090 - M8098)"},{"$f":"IF('[1]Indicator Definitions'!F38=0, \"\", '[1]Indicator Definitions'!F38)","v":""},{"$f":"'[1]Indicator Definitions'!G38","v":"Number of cancer registrations - all ages, for all malignant cancers (ICD10 C00-C97) excluding Basal Cell Carcinoma of the skin (ICD10 C44, M8090 - M8098)"},{"$f":"IF('[1]Indicator Definitions'!H38=0, \"\", '[1]Indicator Definitions'!H38)","v":" "},{"$f":"IF('[1]Indicator Definitions'!I38=0, \"\", '[1]Indicator Definitions'!I38)","v":"Annual November"},{"$f":"'[1]Indicator Definitions'!L38","v":"Source:  The National Cancer Registration Service (NCRS)"},"N"]
[{"$f":"'[1]Indicator Definitions'!A39","v":"L51"},{"$f":"'[1]Indicator Definitions'!B39","v":"Living Well"},{"$f":"'[1]Indicator Definitions'!C39","v":"Cancer"},{"$f":"'[1]Indicator Definitions'!D39","v":"Cancer registrations - under 75's"},{"$f":"'[1]Indicator Definitions'!E39","v":"All malignant cancers (ICD10 C00-C97) excluding Basal Cell Carcinoma of the skin (ICD10 C44, M8090 - M8098)"},{"$f":"IF('[1]Indicator Definitions'!F39=0, \"\", '[1]Indicator Definitions'!F39)","v":""},{"$f":"'[1]Indicator Definitions'!G39","v":"Number of cancer registrations - Under 75's, for all malignant cancers (ICD10 C00-C97) excluding Basal Cell Carcinoma of the skin (ICD10 C44, M8090 - M8098)"},{"$f":"IF('[1]Indicator Definitions'!H39=0, \"\", '[1]Indicator Definitions'!H39)","v":" "},{"$f":"IF('[1]Indicator Definitions'!I39=0, \"\", '[1]Indicator Definitions'!I39)","v":"Annual November"},{"$f":"'[1]Indicator Definitions'!L39","v":"Source:  The National Cancer Registration Service (NCRS)"},"N"]
[{"$f":"'[1]Indicator Definitions'!A40","v":"L46"},{"$f":"'[1]Indicator Definitions'!B40","v":"Living Well"},{"$f":"'[1]Indicator Definitions'!C40","v":"Cancer"},{"$f":"'[1]Indicator Definitions'!D40","v":"Cervical cancer screening rate"},{"$f":"'[1]Indicator Definitions'!E40","v":"Percentage of women aged 25-64 screened for cervical cancer within the target period"},{"$f":"IF('[1]Indicator Definitions'!F40=0, \"\", '[1]Indicator Definitions'!F40)","v":"modelled ward-level estimates"},{"$f":"'[1]Indicator Definitions'!G40","v":"Calculated from GP practice level data.  Numerator: Number of females registered to a practice screened adequately in the previous 42 months (if aged 24-49) or 66 months (if aged 50-64). Denominator: Number of eligible females on last day of the review period.\n"},{"$f":"IF('[1]Indicator Definitions'!H40=0, \"\", '[1]Indicator Definitions'!H40)","v":"Data taken from the Open Exeter system"},{"$f":"IF('[1]Indicator Definitions'!I40=0, \"\", '[1]Indicator Definitions'!I40)","v":"Annual February"},{"$f":"'[1]Indicator Definitions'!L40","v":"Open Exeter"},"N"]
[{"$f":"'[1]Indicator Definitions'!A41","v":"L15"},{"$f":"'[1]Indicator Definitions'!B41","v":"Living Well"},{"$f":"'[1]Indicator Definitions'!C41","v":"Cancer"},{"$f":"'[1]Indicator Definitions'!D41","v":"Emergency hospital admissions with cancer"},{"$f":"'[1]Indicator Definitions'!E41","v":"Age standardised rate per 100,000 resident population"},{"$f":"IF('[1]Indicator Definitions'!F41=0, \"\", '[1]Indicator Definitions'!F41)","v":"ICD-10: C00-C97, D00-D09, D33, D37-D48"},{"$f":"'[1]Indicator Definitions'!G41","v":"Age standardised rate of emergency hospital admissions for all cancers per 100,000 relevant resident population. Numerator: total number of emergency hospital admissions (admission method 2* & FCE sequence 1) for all malignant neoplasms (ICD-10: C00-C97, D00-D09, D33, D37-D48 in the first three diagnostic fields) by area of residence. Denominator: mid-year population estimates for the years used by area of residence.\n"},{"$f":"IF('[1]Indicator Definitions'!H41=0, \"\", '[1]Indicator Definitions'!H41)","v":"This represents Kent residents attending both Kent and non-Kent providers."},{"$f":"IF('[1]Indicator Definitions'!I41=0, \"\", '[1]Indicator Definitions'!I41)","v":"Annual October"},{"$f":"'[1]Indicator Definitions'!L41","v":"Hospital Episode Statistics (HES), NHS Digital, ONS"},"N"]
[{"$f":"'[1]Indicator Definitions'!A42","v":"L20"},{"$f":"'[1]Indicator Definitions'!B42","v":"Living Well"},{"$f":"'[1]Indicator Definitions'!C42","v":"Cancer"},{"$f":"'[1]Indicator Definitions'!D42","v":"Premature mortality from cancer"},{"$f":"'[1]Indicator Definitions'!E42","v":"Age standardised rate per 100,000 people aged under 75 years"},{"$f":"IF('[1]Indicator Definitions'!F42=0, \"\", '[1]Indicator Definitions'!F42)","v":"classified by underlying cause of death (ICD-10: C00-C97) "},{"$f":"'[1]Indicator Definitions'!G42","v":"Age standardised rate of deaths from all cancers for persons aged under 75 years per 100,000 relevant resident population. Numerator: Office for National Statistics deaths from all causes classified by underlying cause of death (ICD-10: C00-C97) registered in the respective calendar year. All neonatal deaths are included regardless of ICD-10 code. Denominator: mid-year population estimates for the relevant age group and for the years used by area of residence.\n"},{"$f":"IF('[1]Indicator Definitions'!H42=0, \"\", '[1]Indicator Definitions'!H42)","v":"An indicator produced by NHS Digital (formerly Health & Social Care Information Centre) as part of the NHS Outcomes Framework.  Single-year periods have been used for all outputs with annual data from 2003. \nAge standardised using the European Standard Population. The age standardised rate is the rate of events that would occur in the standard population if that population were to experience the age-specific rates of the study population. Allows for comparisons of local population to Kent and England.\n"},{"$f":"IF('[1]Indicator Definitions'!I42=0, \"\", '[1]Indicator Definitions'!I42)","v":"Annual August"},{"$f":"'[1]Indicator Definitions'!L42","v":"PCMD"},"N"]
[{"$f":"'[1]Indicator Definitions'!A43","v":"L42"},{"$f":"'[1]Indicator Definitions'!B43","v":"Living Well"},{"$f":"'[1]Indicator Definitions'!C43","v":"Cancer"},{"$f":"'[1]Indicator Definitions'!D43","v":"Premature mortality from cancers considered amenable to early detection"},{"$f":"'[1]Indicator Definitions'!E43","v":"Age standardised rate per 100,000 people aged under 75 years"},{"$f":"IF('[1]Indicator Definitions'!F43=0, \"\", '[1]Indicator Definitions'!F43)","v":"classified by underlying cause of death (ICD-10: C17-C21, C43, C50, C53, C61)"},{"$f":"'[1]Indicator Definitions'!G43","v":"Age standardised rate of deaths from cancers considered amenable to early detection for persons aged under 75 years per 100,000 relevant resident population. Numerator: Office for National Statistics deaths from all causes classified by underlying cause of death (ICD-10: C17-C21, C43, C50, C53, C61) registered in the respective calendar year. Denominator: mid-year population estimates for the relevant age group and for the years used by area of residence.\n"},{"$f":"IF('[1]Indicator Definitions'!H43=0, \"\", '[1]Indicator Definitions'!H43)","v":"Age standardised using the European Standard Population. The age standardised rate is the rate of events that would occur in the standard population if that population were to experience the age-specific rates of the study population. Allows for comparisons of local population to Kent and England.  Cancers considered amenable are those cited in Simonato L., Ballard T., Bellini P. and R. Winkelmann (1998), “Avoidable mortality in Europe 1955-1994: a plea for prevention”, Journal of Epidemiology and Community Health, Vol. 52\n"},{"$f":"IF('[1]Indicator Definitions'!I43=0, \"\", '[1]Indicator Definitions'!I43)","v":"Annual August"},{"$f":"'[1]Indicator Definitions'!L43","v":"PCMD"},"N"]
[{"$f":"'[1]Indicator Definitions'!A44","v":"L41"},{"$f":"'[1]Indicator Definitions'!B44","v":"Living Well"},{"$f":"'[1]Indicator Definitions'!C44","v":"Cancer"},{"$f":"'[1]Indicator Definitions'!D44","v":"Premature mortality from cancers considered preventable"},{"$f":"'[1]Indicator Definitions'!E44","v":"Age standardised rate per 100,000 people aged under 75 years"},{"$f":"IF('[1]Indicator Definitions'!F44=0, \"\", '[1]Indicator Definitions'!F44)","v":"classified by underlying cause of death (ICD-10: C00-C16, C18-C22, C33-C34, C43, C45, C50, C53)"},{"$f":"'[1]Indicator Definitions'!G44","v":"Age standardised rate of deaths from cancers considered preventable for persons aged under 75 years per 100,000 relevant resident population. Numerator: Office for National Statistics deaths from all causes classified by underlying cause of death (ICD-10: C00-C16, C18-C22, C33-C34, C43, C45, C50, C537) registered in the respective calendar year. Denominator: mid-year population estimates for the relevant age group and for the years used by area of residence.\n"},{"$f":"IF('[1]Indicator Definitions'!H44=0, \"\", '[1]Indicator Definitions'!H44)","v":"Age standardised using the European Standard Population. The age standardised rate is the rate of events that would occur in the standard population if that population were to experience the age-specific rates of the study population. Allows for comparisons of local population to Kent and England.\n"},{"$f":"IF('[1]Indicator Definitions'!I44=0, \"\", '[1]Indicator Definitions'!I44)","v":"Annual August"},{"$f":"'[1]Indicator Definitions'!L44","v":"PCMD"},"N"]
[{"$f":"'[1]Indicator Definitions'!A45","v":"L04"},{"$f":"'[1]Indicator Definitions'!B45","v":"Living Well"},{"$f":"'[1]Indicator Definitions'!C45","v":"Cancer"},{"$f":"'[1]Indicator Definitions'!D45","v":"Recorded cancer prevalence"},{"$f":"'[1]Indicator Definitions'!E45","v":"Percentage of patients recorded on GP QOF registers as having cancer, excluding non-melanoma skin cancer"},{"$f":"IF('[1]Indicator Definitions'!F45=0, \"\", '[1]Indicator Definitions'!F45)","v":"modelled ward-level estimates"},{"$f":"'[1]Indicator Definitions'!G45","v":"The percentage of all age patients recorded within general practice registers as having cancer, excluding non-melanoma skin cancer, as reported by the Quality & Outcomes Framework. Including the following read codes: B0-B6, Byu-Byu41, Byu5-ByuE0, K1323, K01w1, 68W24, C184. Numerator: patients recorded within general practice registers as having cancer as reported by the Quality & Outcomes Framework.  Denominator: the all age registered population recorded by the Quality & Outcomes Framework.\n"},{"$f":"IF('[1]Indicator Definitions'!H45=0, \"\", '[1]Indicator Definitions'!H45)","v":"The Quality and Outcomes Framework is published annually and uses an extract of practice list sizes as of 1st January and disease registers as at 31st March within the relevant financial year. Ward level data has been modelled using the general practice patient distributions published by NHS Digital.  Recorded prevalence represents persons presenting to and being diagnosed within general practices. It is difficult to interpret whether any differences in recorded prevalence are due to true underlying prevalence or due to the effectiveness of case finding strategies.\n"},{"$f":"IF('[1]Indicator Definitions'!I45=0, \"\", '[1]Indicator Definitions'!I45)","v":"Annual October"},{"$f":"'[1]Indicator Definitions'!L45","v":"QOF"},"N"]
[{"$f":"'[1]Indicator Definitions'!A46","v":"L24"},{"$f":"'[1]Indicator Definitions'!B46","v":"Living Well"},{"$f":"'[1]Indicator Definitions'!C46","v":"Cardiovascular disease"},{"$f":"'[1]Indicator Definitions'!D46","v":"Emergency hospital admissions for acute myocardial infarction"},{"$f":"'[1]Indicator Definitions'!E46","v":"Age standardised rate per 100,000 resident population"},{"$f":"IF('[1]Indicator Definitions'!F46=0, \"\", '[1]Indicator Definitions'!F46)","v":"ICD 10: I21 (primary diagnosis) "},{"$f":"'[1]Indicator Definitions'!G46","v":"Age standardised rate of emergency hospital admissions for acute myocardial infarction per 100,000 relevant resident population. Numerator: total number of emergency hospital admissions (admission method 2* & FCE sequence 1) with a primary diagnostic code for acute myocardial infarction (ICD 10: I21) using age at activity date for the years used by area of residence. Denominator: mid-year population estimates for the years used by area of residence.\n"},{"$f":"IF('[1]Indicator Definitions'!H46=0, \"\", '[1]Indicator Definitions'!H46)","v":"This represents Kent residents attending both Kent and non-Kent providers."},{"$f":"IF('[1]Indicator Definitions'!I46=0, \"\", '[1]Indicator Definitions'!I46)","v":"Annual October"},{"$f":"'[1]Indicator Definitions'!L46","v":"Hospital Episode Statistics (HES), NHS Digital, ONS"},"N"]
[{"$f":"'[1]Indicator Definitions'!A47","v":"L16"},{"$f":"'[1]Indicator Definitions'!B47","v":"Living Well"},{"$f":"'[1]Indicator Definitions'!C47","v":"Cardiovascular disease"},{"$f":"'[1]Indicator Definitions'!D47","v":"Emergency hospital admissions for cardiovascular disease"},{"$f":"'[1]Indicator Definitions'!E47","v":"Age standardised rate per 100,000  resident population"},{"$f":"IF('[1]Indicator Definitions'!F47=0, \"\", '[1]Indicator Definitions'!F47)","v":"ICD-10: I00-I99 in primary"},{"$f":"'[1]Indicator Definitions'!G47","v":"Age standardised rate of emergency hospital admissions for all cardiovascular diseases per 100,000 relevant resident population.  Numerator: total number of emergency hospital admissions (admission method 2* & FCE sequence 1) for all cardiovascular diseases (ICD-10: I00-I99 in primary) using age at activity date for the years used by area of residence. Denominator: mid-year population estimates for the relevant age group and for the years used by area of residence.\n"},{"$f":"IF('[1]Indicator Definitions'!H47=0, \"\", '[1]Indicator Definitions'!H47)","v":"This represents Kent residents attending both Kent and non-Kent providers."},{"$f":"IF('[1]Indicator Definitions'!I47=0, \"\", '[1]Indicator Definitions'!I47)","v":"Annual October"},{"$f":"'[1]Indicator Definitions'!L47","v":"Hospital Episode Statistics (HES), NHS Digital, ONS"},"N"]
[{"$f":"'[1]Indicator Definitions'!A48","v":"L24"},{"$f":"'[1]Indicator Definitions'!B48","v":"Living Well"},{"$f":"'[1]Indicator Definitions'!C48","v":"Cardiovascular disease"},{"$f":"'[1]Indicator Definitions'!D48","v":"Emergency hospital admissions for diabetes"},{"$f":"'[1]Indicator Definitions'!E48","v":"Age standardised rate per 100,000 resident population"},{"$f":"IF('[1]Indicator Definitions'!F48=0, \"\", '[1]Indicator Definitions'!F48)","v":"ICD 10: E10-14 (primary diagnosis) "},{"$f":"'[1]Indicator Definitions'!G48","v":"Age standardised rate of emergency hospital admissions with diagnostic codes for diabetes per 100,000 relevant resident population. Numerator: total number of emergency hospital admissions (admission method 2* & FCE sequence 1) with a primary diagnostic code for diabetes (ICD 10: E10-14) using age at activity date for the years used by area of residence. Denominator: mid-year population estimates for the years used by area of residence.\n"},{"$f":"IF('[1]Indicator Definitions'!H48=0, \"\", '[1]Indicator Definitions'!H48)","v":"This represents Kent residents attending both Kent and non-Kent providers."},{"$f":"IF('[1]Indicator Definitions'!I48=0, \"\", '[1]Indicator Definitions'!I48)","v":"Annual October"},{"$f":"'[1]Indicator Definitions'!L48","v":"Hospital Episode Statistics (HES), NHS Digital, ONS"},"N"]
[{"$f":"'[1]Indicator Definitions'!A49","v":"L25"},{"$f":"'[1]Indicator Definitions'!B49","v":"Living Well"},{"$f":"'[1]Indicator Definitions'!C49","v":"Cardiovascular disease"},{"$f":"'[1]Indicator Definitions'!D49","v":"Hospital admissions for Coronary Heart Disease (CHD)"},{"$f":"'[1]Indicator Definitions'!E49","v":"Age standardised rate per 100,000 resident population"},{"$f":"IF('[1]Indicator Definitions'!F49=0, \"\", '[1]Indicator Definitions'!F49)","v":"ICD-10: I20-I25 (primary diagnosis)"},{"$f":"'[1]Indicator Definitions'!G49","v":"Age standardised rate of  hospital admissions for CHD per 100,000  resident population.  Numerator: total number of hospital admissions (any admission method & FCE sequence 1) for CHD (ICD-10: I20-25 in primary diagnosis field) for the years used by area of residence. Denominator: mid-year population estimates for the years used by area of residence.\n"},{"$f":"IF('[1]Indicator Definitions'!H49=0, \"\", '[1]Indicator Definitions'!H49)","v":"This represents Kent residents attending both Kent and non-Kent providers."},{"$f":"IF('[1]Indicator Definitions'!I49=0, \"\", '[1]Indicator Definitions'!I49)","v":"Annual October"},{"$f":"'[1]Indicator Definitions'!L49","v":"Hospital Episode Statistics (HES), NHS Digital, ONS"},"N"]
[{"$f":"'[1]Indicator Definitions'!A50","v":"L26"},{"$f":"'[1]Indicator Definitions'!B50","v":"Living Well"},{"$f":"'[1]Indicator Definitions'!C50","v":"Cardiovascular disease"},{"$f":"'[1]Indicator Definitions'!D50","v":"Hospital admissions for stroke"},{"$f":"'[1]Indicator Definitions'!E50","v":"Age standardised rate per 100,000 resident population"},{"$f":"IF('[1]Indicator Definitions'!F50=0, \"\", '[1]Indicator Definitions'!F50)","v":"ICD-10: I61-I64 (primary diagnosis)"},{"$f":"'[1]Indicator Definitions'!G50","v":"Age standardised rate of  hospital admissions for stroke per 100,000  resident population.  Numerator: total number of hospital admissions (any admission method & FCE sequence 1) for stroke (ICD-10: I61-I64 in primary diagnosis field) for the years used by area of residence. Denominator: mid-year population estimates for the years used by area of residence.\n"},{"$f":"IF('[1]Indicator Definitions'!H50=0, \"\", '[1]Indicator Definitions'!H50)","v":"This represents Kent residents attending both Kent and non-Kent providers."},{"$f":"IF('[1]Indicator Definitions'!I50=0, \"\", '[1]Indicator Definitions'!I50)","v":"Annual October"},{"$f":"'[1]Indicator Definitions'!L50","v":"Hospital Episode Statistics (HES), NHS Digital, ONS"},"N"]
[{"$f":"'[1]Indicator Definitions'!A51","v":"L27"},{"$f":"'[1]Indicator Definitions'!B51","v":"Living Well"},{"$f":"'[1]Indicator Definitions'!C51","v":"Cardiovascular disease"},{"$f":"'[1]Indicator Definitions'!D51","v":"Hospital episodes for revascularisation procedures"},{"$f":"'[1]Indicator Definitions'!E51","v":"Age standardised rate per 100,000 resident population"},{"$f":"IF('[1]Indicator Definitions'!F51=0, \"\", '[1]Indicator Definitions'!F51)","v":"OPCS4: K40-K46, K49-K50, K75 (primary procedure)"},{"$f":"'[1]Indicator Definitions'!G51","v":"Age standardised rate of  hospital episodes for revascularisation procedures per 100,000  resident population.  Numerator: total number of hospital episodes (any admission method & FCE sequence 1) for revascularisation procedures (OPCS4: K40-K46, K49-K50, K75  in primary procedure) for the years used by area of residence. Denominator: mid-year population estimates for the years used by area of residence.\n"},{"$f":"IF('[1]Indicator Definitions'!H51=0, \"\", '[1]Indicator Definitions'!H51)","v":"This represents Kent residents attending both Kent and non-Kent providers."},{"$f":"IF('[1]Indicator Definitions'!I51=0, \"\", '[1]Indicator Definitions'!I51)","v":"Annual October"},{"$f":"'[1]Indicator Definitions'!L51","v":"Hospital Episode Statistics (HES), NHS Digital, ONS"},"N"]
[{"$f":"'[1]Indicator Definitions'!A52","v":"L21"},{"$f":"'[1]Indicator Definitions'!B52","v":"Living Well"},{"$f":"'[1]Indicator Definitions'!C52","v":"Cardiovascular disease"},{"$f":"'[1]Indicator Definitions'!D52","v":"Premature mortality from cardiovascular disease"},{"$f":"'[1]Indicator Definitions'!E52","v":"Age standardised rate per 100,000 people aged under 75 years"},{"$f":"IF('[1]Indicator Definitions'!F52=0, \"\", '[1]Indicator Definitions'!F52)","v":"classified by underlying cause of death (ICD-10: I00-I99) "},{"$f":"'[1]Indicator Definitions'!G52","v":"Age standardised rate of deaths from all cardiovascular diseases for ages under 75 years per 100,000 relevant resident population. Numerator: Office for National Statistics deaths from all cardiovascular diseases classified by underlying cause of death (ICD-10: I00-I99) registered in the respective calendar year. Denominator: mid-year population estimates for the relevant age group and for the years used by area of residence.\n"},{"$f":"IF('[1]Indicator Definitions'!H52=0, \"\", '[1]Indicator Definitions'!H52)","v":"An indicator produced by NHS Digital (formerly Health & Social Care Information Centre) as part of the NHS Outcomes Framework.  Single-year periods have been used for all outputs with annual data from 2003. \nAge standardised using the European Standard Population. The age standardised rate is the rate of events that would occur in the standard population if that population were to experience the age-specific rates of the study population. Allows for comparisons of local population to Kent and England.\n"},{"$f":"IF('[1]Indicator Definitions'!I52=0, \"\", '[1]Indicator Definitions'!I52)","v":"Annual August"},{"$f":"'[1]Indicator Definitions'!L52","v":"PCMD"},"N"]
[{"$f":"'[1]Indicator Definitions'!A53","v":"L03"},{"$f":"'[1]Indicator Definitions'!B53","v":"Living Well"},{"$f":"'[1]Indicator Definitions'!C53","v":"Cardiovascular disease"},{"$f":"'[1]Indicator Definitions'!D53","v":"Recorded atrial fibrillation prevalence"},{"$f":"'[1]Indicator Definitions'!E53","v":"Percentage of patients recorded on GP QOF registers as having atrial fibrillation"},{"$f":"IF('[1]Indicator Definitions'!F53=0, \"\", '[1]Indicator Definitions'!F53)","v":"modelled ward-level estimates"},{"$f":"'[1]Indicator Definitions'!G53","v":"The percentage of all age patients recorded within general practice registers as having atrial fibrillation as reported by the Quality & Outcomes Framework. Including the following read code G573. Including atrial fibrillation types; paroxysmal, non-rheumatic, permanent, persistent, chronic, typical and atypical. Not including atrial flutter and paroxysmal atrial flutter. Numerator: patients recorded within general practice registers as having atrial fibrillation as reported by the Quality & Outcomes Framework. Denominator: the all age registered population recorded by the Quality & Outcomes Framework.\n"},{"$f":"IF('[1]Indicator Definitions'!H53=0, \"\", '[1]Indicator Definitions'!H53)","v":"The Quality and Outcomes Framework is published annually and uses an extract of practice list sizes as of 1st January and disease registers as at 31st March within the relevant financial year. Ward level data has been modelled using the general practice patient distributions published by NHS Digital.  Recorded prevalence represents persons presenting to and being diagnosed within general practices. It is difficult to interpret whether any differences in recorded prevalence are due to true underlying prevalence or due to the effectiveness of case finding strategies.\n"},{"$f":"IF('[1]Indicator Definitions'!I53=0, \"\", '[1]Indicator Definitions'!I53)","v":"Annual October"},{"$f":"'[1]Indicator Definitions'!L53","v":"QOF"},"N"]
[{"$f":"'[1]Indicator Definitions'!A54","v":"L06"},{"$f":"'[1]Indicator Definitions'!B54","v":"Living Well"},{"$f":"'[1]Indicator Definitions'!C54","v":"Cardiovascular disease"},{"$f":"'[1]Indicator Definitions'!D54","v":"Recorded CHD prevalence"},{"$f":"'[1]Indicator Definitions'!E54","v":"Percentage of patients recorded on GP QOF registers as having coronary heart disease"},{"$f":"IF('[1]Indicator Definitions'!F54=0, \"\", '[1]Indicator Definitions'!F54)","v":"modelled ward-level estimates"},{"$f":"'[1]Indicator Definitions'!G54","v":"The percentage of all age patients recorded within general practice registers as having coronary heart disease as reported by the Quality & Outcomes Framework. Including the following read codes; G2, G20, Gyu20, G24-G2z, Gyu2. Excluding hypertension secondary to drug (G24z1), secondary malignant hypertension (G2400), secondary benign hypertension (G2410) and hypertension resistant to drug therapy (G27). Numerator: patients recorded within general practice registers as having coronary heart disease as reported by the Quality & Outcomes Framework. Denominator: the all age registered population recorded by the Quality & Outcomes Framework.\n"},{"$f":"IF('[1]Indicator Definitions'!H54=0, \"\", '[1]Indicator Definitions'!H54)","v":"The Quality and Outcomes Framework is published annually and uses an extract of practice list sizes as of 1st January and disease registers as at 31st March within the relevant financial year. Ward level data has been modelled using the general practice patient distributions published by NHS Digital.  Recorded prevalence represents persons presenting to and being diagnosed within general practices. It is difficult to interpret whether any differences in recorded prevalence are due to true underlying prevalence or due to the effectiveness of case finding strategies.\n"},{"$f":"IF('[1]Indicator Definitions'!I54=0, \"\", '[1]Indicator Definitions'!I54)","v":"Annual October"},{"$f":"'[1]Indicator Definitions'!L54","v":"QOF"},"N"]
[{"$f":"'[1]Indicator Definitions'!A55","v":"L02"},{"$f":"'[1]Indicator Definitions'!B55","v":"Living Well"},{"$f":"'[1]Indicator Definitions'!C55","v":"Cardiovascular disease"},{"$f":"'[1]Indicator Definitions'!D55","v":"Recorded chronic kidney disease (CKD) prevalence"},{"$f":"'[1]Indicator Definitions'!E55","v":"Percentage of patients aged 18+ recorded on GP QOF registers as having CKD"},{"$f":"IF('[1]Indicator Definitions'!F55=0, \"\", '[1]Indicator Definitions'!F55)","v":"modelled ward-level estimates"},{"$f":"'[1]Indicator Definitions'!G55","v":"The percentage of patients aged 18 years and over recorded within general practice registers as having chronic kidney disease (categories G3a to G5) mellitus as reported by the Quality & Outcomes Framework. Including the following read codes: (1Z12, K053, 1Z13, K054, 1Z14 & K055, 1Z15, 1Z16, 1Z1B-L, 1Z1T-Z, 1Z1a-f, 1Z12). Numerator: patients aged 18 years and over recorded within general practice registers as having chronic kidney disease as reported by the Quality & Outcomes Framework. Denominator: the registered population aged 18 years and over recorded by the Quality & Outcomes Framework.\n"},{"$f":"IF('[1]Indicator Definitions'!H55=0, \"\", '[1]Indicator Definitions'!H55)","v":"The Quality and Outcomes Framework is published annually and uses an extract of practice list sizes as of 1st January and disease registers as at 31st March within the relevant financial year. Ward level data has been modelled using the general practice patient distributions published by NHS Digital.  Recorded prevalence represents persons presenting to and being diagnosed within general practices. It is difficult to interpret whether any differences in recorded prevalence are due to true underlying prevalence or due to the effectiveness of case finding strategies.\n"},{"$f":"IF('[1]Indicator Definitions'!I55=0, \"\", '[1]Indicator Definitions'!I55)","v":"Annual October"},{"$f":"'[1]Indicator Definitions'!L55","v":"QOF"},"N"]
[{"$f":"'[1]Indicator Definitions'!A56","v":"L01"},{"$f":"'[1]Indicator Definitions'!B56","v":"Living Well"},{"$f":"'[1]Indicator Definitions'!C56","v":"Cardiovascular disease"},{"$f":"'[1]Indicator Definitions'!D56","v":"Recorded diabetes prevalence"},{"$f":"'[1]Indicator Definitions'!E56","v":"Percentage of patients aged 17+ recorded on GP QOF registers as having diabetes mellitus"},{"$f":"IF('[1]Indicator Definitions'!F56=0, \"\", '[1]Indicator Definitions'!F56)","v":"modelled ward-level estimates"},{"$f":"'[1]Indicator Definitions'!G56","v":"The percentage of patients aged 17 years and over recorded within general practice registers as having diabetes mellitus as reported by the Quality & Outcomes Framework. Including the following read codes: C10, C109J, C109K, C10C, C10D, C10E, C10F (excluding C10F8), C10G, C10H, C10M, C10N, PKyP, C10P, C10Q. Numerator: patients aged 17 years and over recorded within general practice registers as having diabetes mellitus as reported by the Quality & Outcomes Framework. Denominator: the registered population aged 18 years and over recorded by the Quality & Outcomes Framework.\n"},{"$f":"IF('[1]Indicator Definitions'!H56=0, \"\", '[1]Indicator Definitions'!H56)","v":"The Quality and Outcomes Framework is published annually and uses an extract of practice list sizes as of 1st January and disease registers as at 31st March within the relevant financial year. Ward level data has been modelled using the general practice patient distributions published by NHS Digital.  Recorded prevalence represents persons presenting to and being diagnosed within general practices. It is difficult to interpret whether any differences in recorded prevalence are due to true underlying prevalence or due to the effectiveness of case finding strategies.\n"},{"$f":"IF('[1]Indicator Definitions'!I56=0, \"\", '[1]Indicator Definitions'!I56)","v":"Annual October"},{"$f":"'[1]Indicator Definitions'!L56","v":"QOF"},"N"]
[{"$f":"'[1]Indicator Definitions'!A57","v":"L08"},{"$f":"'[1]Indicator Definitions'!B57","v":"Living Well"},{"$f":"'[1]Indicator Definitions'!C57","v":"Cardiovascular disease"},{"$f":"'[1]Indicator Definitions'!D57","v":"Recorded hypertension prevalence"},{"$f":"'[1]Indicator Definitions'!E57","v":"Percentage of patients recorded on GP QOF registers as having hypertension"},{"$f":"IF('[1]Indicator Definitions'!F57=0, \"\", '[1]Indicator Definitions'!F57)","v":"modelled ward-level estimates"},{"$f":"'[1]Indicator Definitions'!G57","v":"The percentage of all age patients recorded within general practice registers as having hypertension as reported by the Quality & Outcomes Framework. Including the following read codes;  G2, G20, G24, G25, G26, G2y,G2z, Gyu2. Gyu20. Excluding hypertension resistant to drug therapy – G27. Numerator: patients recorded within general practice registers as having hypertension as reported by the Quality & Outcomes Framework. Denominator: the all age registered population recorded by the Quality & Outcomes Framework.\n"},{"$f":"IF('[1]Indicator Definitions'!H57=0, \"\", '[1]Indicator Definitions'!H57)","v":"The Quality and Outcomes Framework is published annually and uses an extract of practice list sizes as of 1st January and disease registers as at 31st March within the relevant financial year. Ward level data has been modelled using the general practice patient distributions published by NHS Digital.  Recorded prevalence represents persons presenting to and being diagnosed within general practices. It is difficult to interpret whether any differences in recorded prevalence are due to true underlying prevalence or due to the effectiveness of case finding strategies.\n"},{"$f":"IF('[1]Indicator Definitions'!I57=0, \"\", '[1]Indicator Definitions'!I57)","v":"Annual October"},{"$f":"'[1]Indicator Definitions'!L57","v":"QOF"},"N"]
[{"$f":"'[1]Indicator Definitions'!A58","v":"L07"},{"$f":"'[1]Indicator Definitions'!B58","v":"Living Well"},{"$f":"'[1]Indicator Definitions'!C58","v":"Cardiovascular disease"},{"$f":"'[1]Indicator Definitions'!D58","v":"Recorded prevalence of heart failure"},{"$f":"'[1]Indicator Definitions'!E58","v":"Percentage of patients recorded on GP QOF registers as having heart failure"},{"$f":"IF('[1]Indicator Definitions'!F58=0, \"\", '[1]Indicator Definitions'!F58)","v":"modelled ward-level estimates"},{"$f":"'[1]Indicator Definitions'!G58","v":"The percentage of all age patients recorded within general practice registers as having heart failure as reported by the Quality & Outcomes Framework. Including heart failure types; congestive, acute, decompensated, compensated, left ventricular and right ventricular. Including the following read codes; G58, G1yz1, 662f to 662i. Numerator: patients recorded within general practice registers as having heart failure as reported by the Quality & Outcomes Framework. Denominator: the all age registered population recorded by the Quality & Outcomes Framework.\n"},{"$f":"IF('[1]Indicator Definitions'!H58=0, \"\", '[1]Indicator Definitions'!H58)","v":"The Quality and Outcomes Framework is published annually and uses an extract of practice list sizes as of 1st January and disease registers as at 31st March within the relevant financial year. Ward level data has been modelled using the general practice patient distributions published by NHS Digital.  Recorded prevalence represents persons presenting to and being diagnosed within general practices. It is difficult to interpret whether any differences in recorded prevalence are due to true underlying prevalence or due to the effectiveness of case finding strategies.\n"},{"$f":"IF('[1]Indicator Definitions'!I58=0, \"\", '[1]Indicator Definitions'!I58)","v":"Annual October"},{"$f":"'[1]Indicator Definitions'!L58","v":"QOF"},"N"]
[{"$f":"'[1]Indicator Definitions'!A59","v":"L30"},{"$f":"'[1]Indicator Definitions'!B59","v":"Living Well"},{"$f":"'[1]Indicator Definitions'!C59","v":"Cardiovascular disease"},{"$f":"'[1]Indicator Definitions'!D59","v":"Recorded stroke and TIA prevalence"},{"$f":"'[1]Indicator Definitions'!E59","v":"Percentage of patients recorded on GP QOF registers as having Stroke or TIA"},{"$f":"IF('[1]Indicator Definitions'!F59=0, \"\", '[1]Indicator Definitions'!F59)","v":"modelled ward-level estimates"},{"$f":"'[1]Indicator Definitions'!G59","v":"The percentage of all age patients recorded within general practice registers as having stroke or TIA as reported by the Quality & Outcomes Framework. Numerator: patients recorded within general practice registers as having stroke or TIA as reported by the Quality & Outcomes Framework. Denominator: the all age registered population recorded by the Quality & Outcomes Framework.\n"},{"$f":"IF('[1]Indicator Definitions'!H59=0, \"\", '[1]Indicator Definitions'!H59)","v":"The Quality and Outcomes Framework is published annually and uses an extract of practice list sizes as of 1st January and disease registers as at 31st March within the relevant financial year. Ward level data has been modelled using the general practice patient distributions published by NHS Digital.  Recorded prevalence represents persons presenting to and being diagnosed within general practices. It is difficult to interpret whether any differences in recorded prevalence are due to true underlying prevalence or due to the effectiveness of case finding strategies.\n"},{"$f":"IF('[1]Indicator Definitions'!I59=0, \"\", '[1]Indicator Definitions'!I59)","v":"Annual October"},{"$f":"'[1]Indicator Definitions'!L59","v":"QOF"},"N"]
[{"$f":"'[1]Indicator Definitions'!A60","v":"L48"},{"$f":"'[1]Indicator Definitions'!B60","v":"Living Well"},{"$f":"'[1]Indicator Definitions'!C60","v":"Cardiovascular disease"},{"$f":"'[1]Indicator Definitions'!D60","v":"Undiagnosed hypertension (estimated)"},{"$f":"'[1]Indicator Definitions'!E60","v":"Modelled estimates of the prevalence of undiagnosed hypertension amongst those aged 16+"},{"$f":"IF('[1]Indicator Definitions'!F60=0, \"\", '[1]Indicator Definitions'!F60)","v":"modelled ward-level estimates"},{"$f":"'[1]Indicator Definitions'!G60","v":"The estimated prevalence of undiagnosed high blood pressure as estimated by a predictive model developed by Imperial College, London.  Imperial College have produced estimates at GP practice level, which have been modelled to ward using GP practice populations. Numerator: estimated number of patients aged 16+ with undiagnosed hypertension. Denominator: Number of patients aged 16+ (PCIS, June 2015).\n"},{"$f":"IF('[1]Indicator Definitions'!H60=0, \"\", '[1]Indicator Definitions'!H60)","v":"The primary data source for the modelled prevalence estimates is the Health Survey for England, 2013 & 2014 pooled data. Hypertension in the Health Survey for England is defined as systolic blood pressure ≥140 or diastolic blood pressure ≥90, according to commonly used standards.  Undiagnosed hypertension, was derived from those patients that, first, were considered uncontrolled or untreated hypertensive and second, they did not report having been diagnosed high blood pressure.\n"},{"$f":"IF('[1]Indicator Definitions'!I60=0, \"\", '[1]Indicator Definitions'!I60)","v":"2017-04-01"},{"$f":"'[1]Indicator Definitions'!L60","v":"Imperial College London"},"N"]
[{"$f":"'[1]Indicator Definitions'!A61","v":"L35"},{"$f":"'[1]Indicator Definitions'!B61","v":"Living Well"},{"$f":"'[1]Indicator Definitions'!C61","v":"Clinical effectiveness"},{"$f":"'[1]Indicator Definitions'!D61","v":"Amenable mortality"},{"$f":"'[1]Indicator Definitions'!E61","v":"Age standardised rate per 100,000 resident population"},{"$f":"IF('[1]Indicator Definitions'!F61=0, \"\", '[1]Indicator Definitions'!F61)","v":"for deaths amenable to healthcare identified by using underlying cause and age group"},{"$f":"'[1]Indicator Definitions'!G61","v":"See ONS definition"},{"$f":"IF('[1]Indicator Definitions'!H61=0, \"\", '[1]Indicator Definitions'!H61)","v":""},{"$f":"IF('[1]Indicator Definitions'!I61=0, \"\", '[1]Indicator Definitions'!I61)","v":"Annual August"},{"$f":"'[1]Indicator Definitions'!L61","v":"PCMD"},"N"]
[{"$f":"'[1]Indicator Definitions'!A62","v":"L18"},{"$f":"'[1]Indicator Definitions'!B62","v":"Living Well"},{"$f":"'[1]Indicator Definitions'!C62","v":"Clinical effectiveness"},{"$f":"'[1]Indicator Definitions'!D62","v":"Avoidable emergency hospital admissions"},{"$f":"'[1]Indicator Definitions'!E62","v":"Age standardised rate per 100,000 resident population"},{"$f":"IF('[1]Indicator Definitions'!F62=0, \"\", '[1]Indicator Definitions'!F62)","v":"using NHS England definition "},{"$f":"'[1]Indicator Definitions'!G62","v":"Age standardised rate of avoidable emergency hospital admissions per 100,000 relevant resident population. Numerator: total number of emergency hospital admissions (admission method 2*, FCE sequence 1, Admission Source 51, 52, 53, Episode Type 1, Patient Class 1) for the diagnostic codes (see NHS England definition) for the years used by area of residence. Denominator: mid-year population estimates for the relevant age group and for the years used by area of residence.\n"},{"$f":"IF('[1]Indicator Definitions'!H62=0, \"\", '[1]Indicator Definitions'!H62)","v":"Avoidable emergency hospital admissions or ambulatory care sensitive conditions are a range of conditions where effective community care can prevent the need  for hospital admission."},{"$f":"IF('[1]Indicator Definitions'!I62=0, \"\", '[1]Indicator Definitions'!I62)","v":"Annual October"},{"$f":"'[1]Indicator Definitions'!L62","v":"Hospital Episode Statistics (HES), NHS Digital, ONS"},"N"]
[{"$f":"'[1]Indicator Definitions'!A63","v":"L28"},{"$f":"'[1]Indicator Definitions'!B63","v":"Living Well"},{"$f":"'[1]Indicator Definitions'!C63","v":"Clinical effectiveness"},{"$f":"'[1]Indicator Definitions'!D63","v":"Avoidable emergency hospital admissions for acute conditions"},{"$f":"'[1]Indicator Definitions'!E63","v":"Age standardised rate per 100,000 resident population"},{"$f":"IF('[1]Indicator Definitions'!F63=0, \"\", '[1]Indicator Definitions'!F63)","v":""},{"$f":"'[1]Indicator Definitions'!G63","v":"Age standardised rate of emergency admissions for acute conditions that should not usually require hospital admission per 100,000 relevant resident population. Numerator: total number of emergency hospital admissions (admission method 2* & FCE sequence 1) for acute conditions as per the definition at https://indicators.hscic.gov.uk/download/Outcomes%20Framework/Specification/NHSOF_Domain_3_S.pdf) using age at activity date for the years used by area of residence. Denominator: mid-year population estimates for the years used by area of residence.\n"},{"$f":"IF('[1]Indicator Definitions'!H63=0, \"\", '[1]Indicator Definitions'!H63)","v":"This represents Kent residents attending both Kent and non-Kent providers."},{"$f":"IF('[1]Indicator Definitions'!I63=0, \"\", '[1]Indicator Definitions'!I63)","v":"Annual October"},{"$f":"'[1]Indicator Definitions'!L63","v":"Hospital Episode Statistics (HES), NHS Digital, ONS"},"N"]
[{"$f":"'[1]Indicator Definitions'!A64","v":"L27"},{"$f":"'[1]Indicator Definitions'!B64","v":"Living Well"},{"$f":"'[1]Indicator Definitions'!C64","v":"Clinical effectiveness"},{"$f":"'[1]Indicator Definitions'!D64","v":"Avoidable emergency hospital admissions for chronic ambulatory care sensitive conditions"},{"$f":"'[1]Indicator Definitions'!E64","v":"Age standardised rate per 100,000 resident population"},{"$f":"IF('[1]Indicator Definitions'!F64=0, \"\", '[1]Indicator Definitions'!F64)","v":""},{"$f":"'[1]Indicator Definitions'!G64","v":"Age standardised rate of emergency hospital admissions for chronic ambulatory care sensitve conditions per 100,000 relevant resident population. Numerator: total number of emergency hospital admissions (admission method 2* & FCE sequence 1) for chronic ambulatory care sensitive conditions as per the definition at https://indicators.hscic.gov.uk/download/Outcomes%20Framework/Specification/NHSOF_Domain_2_S.pdf) using age at activity date for the years used by area of residence. Denominator: mid-year population estimates for the years used by area of residence.\n"},{"$f":"IF('[1]Indicator Definitions'!H64=0, \"\", '[1]Indicator Definitions'!H64)","v":"This represents Kent residents attending both Kent and non-Kent providers."},{"$f":"IF('[1]Indicator Definitions'!I64=0, \"\", '[1]Indicator Definitions'!I64)","v":"Annual October"},{"$f":"'[1]Indicator Definitions'!L64","v":"Hospital Episode Statistics (HES), NHS Digital, ONS"},"N"]
[{"$f":"'[1]Indicator Definitions'!A65","v":"L34"},{"$f":"'[1]Indicator Definitions'!B65","v":"Living Well"},{"$f":"'[1]Indicator Definitions'!C65","v":"Clinical effectiveness"},{"$f":"'[1]Indicator Definitions'!D65","v":"Avoidable mortality"},{"$f":"'[1]Indicator Definitions'!E65","v":"Age standardised rate per 100,000 resident population"},{"$f":"IF('[1]Indicator Definitions'!F65=0, \"\", '[1]Indicator Definitions'!F65)","v":"for potentially avoidable deaths identified by using underlying cause and age group"},{"$f":"'[1]Indicator Definitions'!G65","v":"See ONS definition"},{"$f":"IF('[1]Indicator Definitions'!H65=0, \"\", '[1]Indicator Definitions'!H65)","v":""},{"$f":"IF('[1]Indicator Definitions'!I65=0, \"\", '[1]Indicator Definitions'!I65)","v":"Annual August"},{"$f":"'[1]Indicator Definitions'!L65","v":"PCMD"},"N"]
[{"$f":"'[1]Indicator Definitions'!A66","v":"L36"},{"$f":"'[1]Indicator Definitions'!B66","v":"Living Well"},{"$f":"'[1]Indicator Definitions'!C66","v":"Clinical effectiveness"},{"$f":"'[1]Indicator Definitions'!D66","v":"Preventable mortality"},{"$f":"'[1]Indicator Definitions'!E66","v":"Age standardised rate per 100,000 resident population"},{"$f":"IF('[1]Indicator Definitions'!F66=0, \"\", '[1]Indicator Definitions'!F66)","v":"for deaths that could be prevented by health intervention identified by using underlying cause and age group"},{"$f":"'[1]Indicator Definitions'!G66","v":"See ONS definition"},{"$f":"IF('[1]Indicator Definitions'!H66=0, \"\", '[1]Indicator Definitions'!H66)","v":""},{"$f":"IF('[1]Indicator Definitions'!I66=0, \"\", '[1]Indicator Definitions'!I66)","v":"Annual August"},{"$f":"'[1]Indicator Definitions'!L66","v":"PCMD"},"N"]
[{"$f":"'[1]Indicator Definitions'!A67","v":"L29"},{"$f":"'[1]Indicator Definitions'!B67","v":"Living Well"},{"$f":"'[1]Indicator Definitions'!C67","v":"Demographics"},{"$f":"'[1]Indicator Definitions'!D67","v":"Index of Multiple Deprivation (IMD)"},{"$f":"'[1]Indicator Definitions'!E67","v":"Overall IMD score"},{"$f":"IF('[1]Indicator Definitions'!F67=0, \"\", '[1]Indicator Definitions'!F67)","v":"population weighted quintile"},{"$f":"'[1]Indicator Definitions'!G67","v":"The English Indices of Deprivation 2015 use 37 separate indicators, organised across seven distinct domains of deprivation which can be combined, using appropriate weights, to calculate the Index of Multiple Deprivation 2015 (IMD 2015). This is an overall measure of multiple deprivation experienced by people living in an area."},{"$f":"IF('[1]Indicator Definitions'!H67=0, \"\", '[1]Indicator Definitions'!H67)","v":"The Indices of Deprivation 2015 have been constructed for the Department for Communities and Local Government (DCLG) by Oxford Consultants for Social Inclusion (OCSI)."},{"$f":"IF('[1]Indicator Definitions'!I67=0, \"\", '[1]Indicator Definitions'!I67)","v":"2015-09-01"},{"$f":"'[1]Indicator Definitions'!L67","v":"DCLG"},"N"]
[{"$f":"'[1]Indicator Definitions'!A68","v":"L12"},{"$f":"'[1]Indicator Definitions'!B68","v":"Living Well"},{"$f":"'[1]Indicator Definitions'!C68","v":"Healthcare usage"},{"$f":"'[1]Indicator Definitions'!D68","v":"Accident & Emergency attendances"},{"$f":"'[1]Indicator Definitions'!E68","v":"Age standardised rate per 100,000 resident population"},{"$f":"IF('[1]Indicator Definitions'!F68=0, \"\", '[1]Indicator Definitions'!F68)","v":""},{"$f":"'[1]Indicator Definitions'!G68","v":"Age standardised rate of accident and emergency attendances per 100,000 relevant resident population. Numerator: total number of accident and emergency attendances for the years used by area of residence. This includes all department types, including; consultant led 24-hour services, speciality services (e.g. ophthalmology & dental) and minor injury unit. Excludes NHS walk in centres. Attendance category 1. Denominator: mid-year population estimates for theyears used by area of residence.\n"},{"$f":"IF('[1]Indicator Definitions'!H68=0, \"\", '[1]Indicator Definitions'!H68)","v":"Accident & Emergency attendances are often preventable from accidental injury or minor illness suited to treatment in primary care.   Public Health England caveat their use of the Hospital Episode Statistics dataset “which has a number of continuing issues regarding quality and coverage of certain key fields. Completeness of data by provider varies, overall completeness when compared to the weekly A&E sit reps is around 86%”"},{"$f":"IF('[1]Indicator Definitions'!I68=0, \"\", '[1]Indicator Definitions'!I68)","v":"Annual October"},{"$f":"'[1]Indicator Definitions'!L68","v":"Hospital Episode Statistics (HES), NHS Digital, ONS"},"N"]
[{"$f":"'[1]Indicator Definitions'!A69","v":"L13"},{"$f":"'[1]Indicator Definitions'!B69","v":"Living Well"},{"$f":"'[1]Indicator Definitions'!C69","v":"Healthcare usage"},{"$f":"'[1]Indicator Definitions'!D69","v":"Elective hospital admissions"},{"$f":"'[1]Indicator Definitions'!E69","v":"Age standardised rate per 100,000 resident population"},{"$f":"IF('[1]Indicator Definitions'!F69=0, \"\", '[1]Indicator Definitions'!F69)","v":""},{"$f":"'[1]Indicator Definitions'!G69","v":"Age standardised rate of elective hospital admissions per 100,000 relevant resident population. Numerator: total number of elective hospital admissions (admission method 1* & FCE sequence 1) for the years used by area of residence. Denominator: mid-year population estimates for the years used by area of residence.\n"},{"$f":"IF('[1]Indicator Definitions'!H69=0, \"\", '[1]Indicator Definitions'!H69)","v":"Elective hospital admissions represent an admission planned in advance, unlike an emergency hospital admission."},{"$f":"IF('[1]Indicator Definitions'!I69=0, \"\", '[1]Indicator Definitions'!I69)","v":"Annual October"},{"$f":"'[1]Indicator Definitions'!L69","v":"Hospital Episode Statistics (HES), NHS Digital, ONS"},"N"]
[{"$f":"'[1]Indicator Definitions'!A70","v":"L14"},{"$f":"'[1]Indicator Definitions'!B70","v":"Living Well"},{"$f":"'[1]Indicator Definitions'!C70","v":"Healthcare usage"},{"$f":"'[1]Indicator Definitions'!D70","v":"Emergency hospital admissions"},{"$f":"'[1]Indicator Definitions'!E70","v":"Age standardised rate per 100,000 resident population"},{"$f":"IF('[1]Indicator Definitions'!F70=0, \"\", '[1]Indicator Definitions'!F70)","v":""},{"$f":"'[1]Indicator Definitions'!G70","v":"Age standardised rate of emergency hospital admissions per 100,000 relevant resident population. Numerator: total number of emergency hospital admissions (admission method 2* & FCE sequence 1)  for the years used by area of residence. Denominator: mid-year population estimates for the years used by area of residence.\n"},{"$f":"IF('[1]Indicator Definitions'!H70=0, \"\", '[1]Indicator Definitions'!H70)","v":"This represents Kent residents attending both Kent and non-Kent providers."},{"$f":"IF('[1]Indicator Definitions'!I70=0, \"\", '[1]Indicator Definitions'!I70)","v":"Annual October"},{"$f":"'[1]Indicator Definitions'!L70","v":"Hospital Episode Statistics (HES), NHS Digital, ONS"},"N"]
[{"$f":"'[1]Indicator Definitions'!A71","v":"L37"},{"$f":"'[1]Indicator Definitions'!B71","v":"Living Well"},{"$f":"'[1]Indicator Definitions'!C71","v":"Lifestyle"},{"$f":"'[1]Indicator Definitions'!D71","v":"Adults classified as overweight or obese"},{"$f":"'[1]Indicator Definitions'!E71","v":"Percentage of adults (aged 18+) classified as overweight or obese"},{"$f":"IF('[1]Indicator Definitions'!F71=0, \"\", '[1]Indicator Definitions'!F71)","v":""},{"$f":"'[1]Indicator Definitions'!G71","v":"Questions on self-reported height and weight are included in Active Lives to provide data for monitoring excess weight in adults at local authority level for the Public Health Outcomes Framework (PHOF).It is known that adults tend to underestimate their weight and overestimate their height when providing self-reported measurements and the extent to which this occurs can differ between population groups. Therefore prevalence of excess weight (overweight including obese) calculated from self-reported data is likely to produce lower estimates than prevalence calculated from measured data.Differences between self-reported and measured height and weight vary in a systematic way, primarily as a function of age and sex. This systematic variation can be described by formulas which may be used to adjust self-reported height and weight measurements at an individual level to give likely actual height and weight.Active Lives self-reported height and weight have been adjusted at individual level using formulas estimated with Health Survey for England (HSE) data from 2012 to 2014. HSE collects data on both self-report and measured height and weight from the same individuals and this allows adjustment formulas to be estimated. The prevalences are weighted to be representative of the whole population at each level of geography. They have also been age-standardised to improve comparability of excess weight prevalence between Local Authorities. Further details of the self-report adjustment and age-standardisation are available.  Numerator: Number of adults aged 18+ with a BMI classified as overweight (including obese), calculated from the adjusted height and weight variables. Adults are defined as overweight (including obese) if their body mass index (BMI) is greater than or equal to 25kg/m2.  Denominator: Number of adults aged 18+ with valid height and weight recorded."},{"$f":"IF('[1]Indicator Definitions'!H71=0, \"\", '[1]Indicator Definitions'!H71)","v":"This indicator replaces the old Excess weight in adults PHOF indicator which was based on the Active People Survey (2.12 - Excess weight in adults - historical method). In 2016 the Active People Survey was replaced by the Active Lives survey and a new excess weight indicator was required as Active Lives represents a change in survey methodology, both in terms of questions asked and the mode of response (from telephone to online or paper completion). Obesity is a priority area for Government. The Government's \"Call to Action\" on obesity (published Oct 2011) included national ambitions relating to excess weight in adults, which is recognised as a major determinant of premature mortality and avoidable ill health.  https://www.gov.uk/government/publications/healthy-lives-healthy-people-a-call-to-action-on-obesity-in-england"},{"$f":"IF('[1]Indicator Definitions'!I71=0, \"\", '[1]Indicator Definitions'!I71)","v":"Annual October"},{"$f":"'[1]Indicator Definitions'!L71","v":"Public Health England (based on Active Lives survey, Sport England)"},"N"]
[{"$f":"'[1]Indicator Definitions'!A72","v":"L40"},{"$f":"'[1]Indicator Definitions'!B72","v":"Living Well"},{"$f":"'[1]Indicator Definitions'!C72","v":"Lifestyle"},{"$f":"'[1]Indicator Definitions'!D72","v":"Fruit and vegetable consumption in adults"},{"$f":"'[1]Indicator Definitions'!E72","v":"Percentage of adults (aged 16+) meeting the recommended '5-a-day' on a 'usual day' "},{"$f":"IF('[1]Indicator Definitions'!F72=0, \"\", '[1]Indicator Definitions'!F72)","v":""},{"$f":"'[1]Indicator Definitions'!G72","v":"The number of respondents aged 16 and over, with valid responses to questions on fruit and vegetable consumption, who reported that they had eaten the recommended 5 portions of fruit and vegetables on a usual day."},{"$f":"IF('[1]Indicator Definitions'!H72=0, \"\", '[1]Indicator Definitions'!H72)","v":"Questions and respondent information from Active Lives for fruit and vegetable consumption.FruitHow many portions of fruit did you eat yesterday? Please include all fruit, including fresh, frozen, dried or tinned fruit, stewed fruit or fruit juices and smoothies. Fruit juice only counts as one portion no matter how much you drink.INFO: What should I count as a portion? A portion is half a large fruit such as a grapefruit, avocado, one medium sized fruit such as an apple, orange or pear, 2 small fruits such as plums or satsumas, a handful of grapes or berries, a heaped tablespoon of dried fruit, 3 heaped tablespoons of fruit salad or stewed fruit, 150ml fruit juice. Please do not include more than 150ml of fruit juice (including fruit juice contained within smoothies). This is because only one portion of fruit juice counts towards your 5-a-day. VegetablesHow many portions of vegetables did you eat yesterday? Please include fresh, frozen, raw or tinned vegetables, but do not include any potatoes you ate. Beans and pulses only count as one portion no matter how much of them you eat.INFO: What should I count as a portion?A portion is 3 heaped tablespoons of vegetables, 3 heaped tablespoons of beans or pulses (such as baked beans, kidney beans or lentils). Beans and pulses only count as one portion no matter how much of them you eat. Potatoes do not count.DefinitionsDenominator values in the Download data are unweighted counts. All analyses for this indicator have been weighted to be representative of the population of England.Working StatusWorking is defined as those that reported their current working status as either working full-time or working part-time. Unemployed includes those that reported being unemployed for less than 12 months or more than 12 months. Inactive is defined as those that reported their current working status as retired, looking after house/children or long-term sick or disabled. The Working Status category excludes those that report their working status as student or other.DisabilityDisability is defined as self-reporting of any physical or mental health conditions or illnesses that have lasted or are expected to last 12 months or more, that have a substantial effect on the ability to carry out normal daily activities.Socioeconomic statusValid respondents were assigned to one of eight National Statistics Socio-economic classification (NS-SEC) analytic classes. These NS-SEC classes were then grouped to provide four categories: Managerial and professional occupations; Intermediate occupations; Routine and manual occupations and; Never worked and long term unemployed.Managerial and professional occupations - Managerial, administrative and professional occupations (NS SEC 1-2)Intermediate occupations - Intermediate occupations, small employers and own account workers, and Lower supervisory and technical occupations (NS SEC 3-5)Routine and manual occupations - Semi-routine and routine occupations (NS SEC 6-7)Never worked and long term unemployed - Long term unemployed or never worked (NS SEC 8)Respondents classed as full-time student or unclassified (NS SEC 9), and those aged under 16 or over 75 were excluded from the socioeconomic status analysis."},{"$f":"IF('[1]Indicator Definitions'!I72=0, \"\", '[1]Indicator Definitions'!I72)","v":"Annual October"},{"$f":"'[1]Indicator Definitions'!L72","v":"Public Health England (based on Active Lives, Sport England)"},"N"]
[{"$f":"'[1]Indicator Definitions'!A73","v":"L39"},{"$f":"'[1]Indicator Definitions'!B73","v":"Living Well"},{"$f":"'[1]Indicator Definitions'!C73","v":"Lifestyle"},{"$f":"'[1]Indicator Definitions'!D73","v":"Physical inactivity in adults"},{"$f":"'[1]Indicator Definitions'!E73","v":"Percentage of adults (aged 19+) that are physically inactive (<30 moderate intensity equivalent minutes per week)"},{"$f":"IF('[1]Indicator Definitions'!F73=0, \"\", '[1]Indicator Definitions'!F73)","v":""},{"$f":"'[1]Indicator Definitions'!G73","v":"The number of respondents aged 19 and over, with valid responses to questions on physical activity, doing less than 30 moderate intensity equivalent (MIE) minutes physical activity per week in bouts of 10 minutes or more in the previous 28 days expressed as a percentage of the total number of respondents aged 19 and over."},{"$f":"IF('[1]Indicator Definitions'!H73=0, \"\", '[1]Indicator Definitions'!H73)","v":"The values are calculated from Active Lives a self-report survey, which is subjective and is influenced by the respondent's ability to recall and assess their physical activity levels. Self-reported data may also be affected by respondent desire to confirm to expectations and social norms (e.g. smoking under-estimated and PA over-estimated). However, although this might affect the absolute values, this should not affect comparisons if the bias is consistent across populations.It is not possible to compare results with previous indicators of physical activity presented in Fingertips due to the change in the data source (from Active People Survey to Active Lives) and definition of adults."},{"$f":"IF('[1]Indicator Definitions'!I73=0, \"\", '[1]Indicator Definitions'!I73)","v":"Annual October"},{"$f":"'[1]Indicator Definitions'!L73","v":"Public Health England (based on Active Lives, Sport England)"},"N"]
[{"$f":"'[1]Indicator Definitions'!A74","v":"L38"},{"$f":"'[1]Indicator Definitions'!B74","v":"Living Well"},{"$f":"'[1]Indicator Definitions'!C74","v":"Lifestyle"},{"$f":"'[1]Indicator Definitions'!D74","v":"Smoking prevalence in adults"},{"$f":"'[1]Indicator Definitions'!E74","v":"Percentage of adults (aged 18+) who are self-reported smokers"},{"$f":"IF('[1]Indicator Definitions'!F74=0, \"\", '[1]Indicator Definitions'!F74)","v":""},{"$f":"'[1]Indicator Definitions'!G74","v":"The prevalence is calculated by dividing the weighted number of self-reported smokers aged 18+ by total number of respondents (with a valid smoking status) aged 18+, expressed as a percentage."},{"$f":"IF('[1]Indicator Definitions'!H74=0, \"\", '[1]Indicator Definitions'!H74)","v":"Each eligible participant (18 years and over) in the Annual Population Survey (APS) was asked two smoking related questions;From 2016:1.Have you ever smoked cigarettes regularly? (yes/no)2.And do you smoke cigarettes at all nowadays? (yes/no).  From this smoking status was derived as current\u009d, ex-smoker\u009d or non-smoker\u009d. Self-reported smoking status may be prone to respondent bias."},{"$f":"IF('[1]Indicator Definitions'!I74=0, \"\", '[1]Indicator Definitions'!I74)","v":"Annual April"},{"$f":"'[1]Indicator Definitions'!L74","v":"Annual Population Survey (APS)"},"N"]
[{"$f":"'[1]Indicator Definitions'!A75","v":"L25"},{"$f":"'[1]Indicator Definitions'!B75","v":"Living Well"},{"$f":"'[1]Indicator Definitions'!C75","v":"Mental health"},{"$f":"'[1]Indicator Definitions'!D75","v":"Hospital admissions for mental health conditions"},{"$f":"'[1]Indicator Definitions'!E75","v":"Age standardised rate per 100,000 resident population"},{"$f":"IF('[1]Indicator Definitions'!F75=0, \"\", '[1]Indicator Definitions'!F75)","v":"ICD 10: F (primary diagnosis) "},{"$f":"'[1]Indicator Definitions'!G75","v":"Age standardised rate of emergency hospital admissions for mental health conditions per 100,000 relevant resident population. Numerator: total number of hospital admissions (any admission method,  FAE sequence 1) with a primary diagnostic code for a mental health condition (ICD 10: F) using age at activity date for the years used by area of residence. Denominator: mid-year population estimates for the years used by area of residence.\n"},{"$f":"IF('[1]Indicator Definitions'!H75=0, \"\", '[1]Indicator Definitions'!H75)","v":"This represents Kent residents attending both Kent and non-Kent providers."},{"$f":"IF('[1]Indicator Definitions'!I75=0, \"\", '[1]Indicator Definitions'!I75)","v":"Annual October"},{"$f":"'[1]Indicator Definitions'!L75","v":"Hospital Episode Statistics (HES), NHS Digital, ONS"},"N"]
[{"$f":"'[1]Indicator Definitions'!A76","v":"L53"},{"$f":"'[1]Indicator Definitions'!B76","v":"Living Well"},{"$f":"'[1]Indicator Definitions'!C76","v":"Mental health"},{"$f":"'[1]Indicator Definitions'!D76","v":"Emergency hospital admissions for self-harm"},{"$f":"'[1]Indicator Definitions'!E76","v":"Age standardised rate per 100,000 resident population"},{"$f":"IF('[1]Indicator Definitions'!F76=0, \"\", '[1]Indicator Definitions'!F76)","v":"ICD 10: X60-X84 (main recorded cause)"},{"$f":"'[1]Indicator Definitions'!G76","v":"Age standardised rate of emergency hospital admissions for self-harm per 100,000 relevant resident population. Numerator: total number of emergency hospital admissions (admission method 2* & FCE sequence 1) with a self-harm main recorded cause (ICD 10: X60-X84) using age at activity date for the years used by area of residence. Denominator: mid-year population estimates for the years used by area of residence.\n"},{"$f":"IF('[1]Indicator Definitions'!H76=0, \"\", '[1]Indicator Definitions'!H76)","v":"This represents Kent residents attending both Kent and non-Kent providers."},{"$f":"IF('[1]Indicator Definitions'!I76=0, \"\", '[1]Indicator Definitions'!I76)","v":"Annual October"},{"$f":"'[1]Indicator Definitions'!L76","v":"Hospital Episode Statistics (HES), NHS Digital, ONS"},"N"]
[{"$f":"'[1]Indicator Definitions'!A77","v":"L33"},{"$f":"'[1]Indicator Definitions'!B77","v":"Living Well"},{"$f":"'[1]Indicator Definitions'!C77","v":"Mental health"},{"$f":"'[1]Indicator Definitions'!D77","v":"Recorded prevalence of depression"},{"$f":"'[1]Indicator Definitions'!E77","v":"Percentage of patients aged 18+ recorded on GP QOF registers as having depression"},{"$f":"IF('[1]Indicator Definitions'!F77=0, \"\", '[1]Indicator Definitions'!F77)","v":"modelled ward-level estimates"},{"$f":"'[1]Indicator Definitions'!G77","v":"The percentage of all age patients recorded within general practice registers as having depression as reported by the Quality & Outcomes Framework. Including the following read codes: (E0013 , E0021 , E112.% ,E113.% , E118. , E11y2 ,E11z2 , E130. , E135. , E2003, E291. , E2B.. , E2B1. ,Eu204 , Eu251 , Eu32.%(excluding Eu32A , Eu32B ,Eu329) , Eu33.% , Eu341 , Eu412). Numerator: patients recorded within general practice registers as having dementia as reported by the Quality & Outcomes Framework.  Denominator: the all age registered population recorded by the Quality & Outcomes Framework.\n"},{"$f":"IF('[1]Indicator Definitions'!H77=0, \"\", '[1]Indicator Definitions'!H77)","v":"The Quality and Outcomes Framework is published annually and uses an extract of practice list sizes as of 1st January and disease registers as at 31st March within the relevant financial year. Ward level data has been modelled using the general practice patient distributions published by NHS Digital.  Recorded prevalence represents persons presenting to and being diagnosed within general practices. It is difficult to interpret whether any differences in recorded prevalence are due to true underlying prevalence or due to the effectiveness of case finding strategies.\n"},{"$f":"IF('[1]Indicator Definitions'!I77=0, \"\", '[1]Indicator Definitions'!I77)","v":"Annual October"},{"$f":"'[1]Indicator Definitions'!L77","v":"QOF"},"N"]
[{"$f":"'[1]Indicator Definitions'!A78","v":"L09"},{"$f":"'[1]Indicator Definitions'!B78","v":"Living Well"},{"$f":"'[1]Indicator Definitions'!C78","v":"Mental health"},{"$f":"'[1]Indicator Definitions'!D78","v":"Recorded prevalence of learning disabilities"},{"$f":"'[1]Indicator Definitions'!E78","v":"Percentage of patients recorded on GP QOF registers as having a learning disability"},{"$f":"IF('[1]Indicator Definitions'!F78=0, \"\", '[1]Indicator Definitions'!F78)","v":"modelled ward-level estimates"},{"$f":"'[1]Indicator Definitions'!G78","v":"The percentage of all age patients recorded within general practice registers as having a learning disability as reported by the Quality & Outcomes Framework.  Including; mild, moderate, severe, profound, other and unspecified. Including the following read codes; E3, Eu7, Eu814-Eu818, Eu81z, 918e. Numerator: patients recorded within general practice registers as having a learning disability as reported by the Quality & Outcomes Framework. Denominator: the all age registered population recorded by the Quality & Outcomes Framework.\n"},{"$f":"IF('[1]Indicator Definitions'!H78=0, \"\", '[1]Indicator Definitions'!H78)","v":"The Quality and Outcomes Framework is published annually and uses an extract of practice list sizes as of 1st January and disease registers as at 31st March within the relevant financial year. Ward level data has been modelled using the general practice patient distributions published by NHS Digital.  Recorded prevalence represents persons presenting to and being diagnosed within general practices. It is difficult to interpret whether any differences in recorded prevalence are due to true underlying prevalence or due to the effectiveness of case finding strategies.\n"},{"$f":"IF('[1]Indicator Definitions'!I78=0, \"\", '[1]Indicator Definitions'!I78)","v":"Annual October"},{"$f":"'[1]Indicator Definitions'!L78","v":"QOF"},"N"]
[{"$f":"'[1]Indicator Definitions'!A79","v":"L10"},{"$f":"'[1]Indicator Definitions'!B79","v":"Living Well"},{"$f":"'[1]Indicator Definitions'!C79","v":"Mental health"},{"$f":"'[1]Indicator Definitions'!D79","v":"Recorded prevalence of serious mental health conditions"},{"$f":"'[1]Indicator Definitions'!E79","v":"The percentage of patients recorded on GP QOF registers as having schizophrenia, bipolar affective disorder, other psychoses or on lithium therapy"},{"$f":"IF('[1]Indicator Definitions'!F79=0, \"\", '[1]Indicator Definitions'!F79)","v":"modelled ward-level estimates"},{"$f":"'[1]Indicator Definitions'!G79","v":"The percentage of all age patients recorded within general practice registers as having schizophrenia, bipolar affective disorder, other psychoses or on lithium therapy as reported by the Quality & Outcomes Framework.  Including the following read codes; E10, Eu2, E110, E11z, E13, Eu30 and E111, E11y, E1124, E1134, E114-W117, Eu31, E2122, Eu323, Eu328, Eu333, Eu32A, Eu329, d6. Numerator: patients recorded within general practice registers as having schizophrenia, bipolar affective disorder, other psychoses or on lithium therapy as reported by the Quality & Outcomes Framework. Denominator: the all age registered population recorded by the Quality & Outcomes Framework.\n"},{"$f":"IF('[1]Indicator Definitions'!H79=0, \"\", '[1]Indicator Definitions'!H79)","v":"The Quality and Outcomes Framework is published annually and uses an extract of practice list sizes as of 1st January and disease registers as at 31st March within the relevant financial year. Ward level data has been modelled using the general practice patient distributions published by NHS Digital.  Recorded prevalence represents persons presenting to and being diagnosed within general practices. It is difficult to interpret whether any differences in recorded prevalence are due to true underlying prevalence or due to the effectiveness of case finding strategies.\n"},{"$f":"IF('[1]Indicator Definitions'!I79=0, \"\", '[1]Indicator Definitions'!I79)","v":"Annual October"},{"$f":"'[1]Indicator Definitions'!L79","v":"QOF"},"N"]
[{"$f":"'[1]Indicator Definitions'!A80","v":"L43"},{"$f":"'[1]Indicator Definitions'!B80","v":"Living Well"},{"$f":"'[1]Indicator Definitions'!C80","v":"Mental health"},{"$f":"'[1]Indicator Definitions'!D80","v":"Suicide rate"},{"$f":"'[1]Indicator Definitions'!E80","v":"Age standardised rate per 100,000 people aged 10+"},{"$f":"IF('[1]Indicator Definitions'!F80=0, \"\", '[1]Indicator Definitions'!F80)","v":"classified by underlying cause of death (ICD-10: X60-X84 (ages 10+ only), Y10-Y34 (ages 15+ only))"},{"$f":"'[1]Indicator Definitions'!G80","v":"Age standardised rate of deaths from suicide and injury of undetermined intent classified by underlying cause of death. Numerator: Office for National Statistics deaths from all causes classified by underlying cause of death (ICD-10:  X60-X84 (age 10+ only), Y10-Y34 (ages 15+ only)) registered in the respective calendar year. Denominator: mid-year population estimates for the relevant age group and for the years used by area of residence.\n"},{"$f":"IF('[1]Indicator Definitions'!H80=0, \"\", '[1]Indicator Definitions'!H80)","v":"Age standardised using the European Standard Population. The age standardised rate is the rate of events that would occur in the standard population if that population were to experience the age-specific rates of the study population. Allows for comparisons of local population to Kent and England. \n"},{"$f":"IF('[1]Indicator Definitions'!I80=0, \"\", '[1]Indicator Definitions'!I80)","v":"Annual August"},{"$f":"'[1]Indicator Definitions'!L80","v":"PCMD"},"N"]
[{"$f":"'[1]Indicator Definitions'!A81","v":"L44"},{"$f":"'[1]Indicator Definitions'!B81","v":"Living Well"},{"$f":"'[1]Indicator Definitions'!C81","v":"Multimorbidity"},{"$f":"'[1]Indicator Definitions'!D81","v":"Multimorbidity (developmental statistics)"},{"$f":"'[1]Indicator Definitions'!E81","v":"Patients recorded by their GP as having 2 or more long-term conditions"},{"$f":"IF('[1]Indicator Definitions'!F81=0, \"\", '[1]Indicator Definitions'!F81)","v":"age standardised rate per 100,000 people"},{"$f":"'[1]Indicator Definitions'!G81","v":"Age standardised rate of people with multimorbidity, classified by having 2 or more of the following long-term conditions: Atrial fibrillation (AF), Coronary Heart Disease (CHD), Hypertension, Heart Failure (HF), Peripheral Artery Disease (PAD), Stroke, Diabetes, Asthma, Chronic Obstructive Pulmonary Disease (COPD), Dementia, Mental Health, Cancer, Chronic Kidney Disease (CKD), Epilepsy, Learning Disability (LD), Osteoporosis, Rheumatoid Arthritis (RA), Obesity, Depression.  Numerator:  Number with 2 or more long term conditions as listed above taken from the Kent Integrated Dataset (KID) LTC table.  Denominator:  Registered population as recorded within KID for Kent LSOAs and for relevant age group.  Analysis is restricted to patients registered at GPs flowing data into the KID at the time of the analysis."},{"$f":"IF('[1]Indicator Definitions'!H81=0, \"\", '[1]Indicator Definitions'!H81)","v":"Information taken from the KID using the LTC table.  Analysis based on the GP records captured within the KID should be treated as 'developmental statistics'."},{"$f":"IF('[1]Indicator Definitions'!I81=0, \"\", '[1]Indicator Definitions'!I81)","v":"NA"},{"$f":"'[1]Indicator Definitions'!L81","v":"Kent Integrated Dataset (KID)"},"N"]
[{"$f":"'[1]Indicator Definitions'!A82","v":"L50"},{"$f":"'[1]Indicator Definitions'!B82","v":"Living Well"},{"$f":"'[1]Indicator Definitions'!C82","v":"Multimorbidity"},{"$f":"'[1]Indicator Definitions'!D82","v":"Multimorbidity (developmental statistics): Prevalence of long term condition combinations"},{"$f":"'[1]Indicator Definitions'!E82","v":"Patients recorded by their GP as having specific combinations of long term conditions"},{"$f":"IF('[1]Indicator Definitions'!F82=0, \"\", '[1]Indicator Definitions'!F82)","v":""},{"$f":"'[1]Indicator Definitions'!G82","v":"Percentage of people (all ages) with specific combinations of two long-term conditions: Atrial fibrillation (AF), Coronary Heart Disease (CHD), Hypertension, Heart Failure (HF), Peripheral Artery Disease (PAD), Stroke, Diabetes, Asthma, Chronic Obstructive Pulmonary Disease (COPD), Dementia, Mental Health, Cancer, Chronic Kidney Disease (CKD), Epilepsy, Learning Disability (LD), Osteoporosis, Rheumatoid Arthritis (RA), Obesity, Depression.  Figures include those with other conditions as well as the named long-term conditions Numerator:  Number with each combination of two long-term conditions taken from the Kent Integrated Dataset (KID) LTC table.  Denominator:  Registered population as recorded within KID for Kent LSOAs.  Analysis is restricted to patients registered at GPs flowing data into the KID at the time of the analysis."},{"$f":"IF('[1]Indicator Definitions'!H82=0, \"\", '[1]Indicator Definitions'!H82)","v":"Information taken from the KID using the LTC table.  Analysis based on the GP records captured within the KID should be treated as 'developmental statistics'."},{"$f":"IF('[1]Indicator Definitions'!I82=0, \"\", '[1]Indicator Definitions'!I82)","v":"NA"},{"$f":"'[1]Indicator Definitions'!L82","v":"Kent Integrated Dataset (KID)"},"N"]
[{"$f":"'[1]Indicator Definitions'!A83","v":"L32"},{"$f":"'[1]Indicator Definitions'!B83","v":"Living Well"},{"$f":"'[1]Indicator Definitions'!C83","v":"Premature mortality"},{"$f":"'[1]Indicator Definitions'!D83","v":"Causes of premature mortality"},{"$f":"'[1]Indicator Definitions'!E83","v":"Underlying cause of death for persons aged under 75 years"},{"$f":"IF('[1]Indicator Definitions'!F83=0, \"\", '[1]Indicator Definitions'!F83)","v":""},{"$f":"'[1]Indicator Definitions'!G83","v":"Causes of deaths involving persons aged under 75 years. Numerator: Office for National Statistics deaths from specific causes classified by underlying cause of death (ICD-10) registered in the respective calendar year. Denominator: Office for National Statistics deaths from all causes classified by underlying cause of death (ICD-10: A00-Y99) registered in the respective calendar year.\n"},{"$f":"IF('[1]Indicator Definitions'!H83=0, \"\", '[1]Indicator Definitions'!H83)","v":""},{"$f":"IF('[1]Indicator Definitions'!I83=0, \"\", '[1]Indicator Definitions'!I83)","v":"Annual August"},{"$f":"'[1]Indicator Definitions'!L83","v":"PCMD"},"N"]
[{"$f":"'[1]Indicator Definitions'!A84","v":"L19"},{"$f":"'[1]Indicator Definitions'!B84","v":"Living Well"},{"$f":"'[1]Indicator Definitions'!C84","v":"Premature mortality"},{"$f":"'[1]Indicator Definitions'!D84","v":"Premature mortality from all causes"},{"$f":"'[1]Indicator Definitions'!E84","v":"Age standardised rate per 100,000 people aged under 75 years"},{"$f":"IF('[1]Indicator Definitions'!F84=0, \"\", '[1]Indicator Definitions'!F84)","v":"classified by underlying cause of death (ICD-10: A00-Y99) "},{"$f":"'[1]Indicator Definitions'!G84","v":"Age standardised rate of deaths from all causes for persons aged under 75 years per 100,000 relevant resident population.\nNumerator: Office for National Statistics deaths from all causes classified by underlying cause of death (ICD-10: A00-Y99) registered in the respective calendar year. All neonatal deaths are included regardless of ICD-10 code. \nDenominator: mid-year population estimates for the relevant age group and for the years used by area of residence.\n"},{"$f":"IF('[1]Indicator Definitions'!H84=0, \"\", '[1]Indicator Definitions'!H84)","v":"An indicator produced by NHS Digital (formerly Health & Social Care Information Centre) as part of the NHS Outcomes Framework.  Single-year periods have been used for all outputs with annual data from 2003. \nAge standardised using the European Standard Population. The age standardised rate is the rate of events that would occur in the standard population if that population were to experience the age-specific rates of the study population. Allows for comparisons of local population to Kent and England.\n"},{"$f":"IF('[1]Indicator Definitions'!I84=0, \"\", '[1]Indicator Definitions'!I84)","v":"Annual August"},{"$f":"'[1]Indicator Definitions'!L84","v":"PCMD"},"N"]
[{"$f":"'[1]Indicator Definitions'!A85","v":"L17"},{"$f":"'[1]Indicator Definitions'!B85","v":"Living Well"},{"$f":"'[1]Indicator Definitions'!C85","v":"Respiratory disease"},{"$f":"'[1]Indicator Definitions'!D85","v":"Emergency hospital admissions for all respiratory disease for persons aged 20 to 64 years"},{"$f":"'[1]Indicator Definitions'!E85","v":"Age standardised rate per 100,000 people aged 20-64"},{"$f":"IF('[1]Indicator Definitions'!F85=0, \"\", '[1]Indicator Definitions'!F85)","v":"ICD-10: J00-J99 in primary"},{"$f":"'[1]Indicator Definitions'!G85","v":"Age standardised rate of emergency hospital admissions for all respiratory diseases per 100,000 relevant resident population. Numerator: total number of emergency hospital admissions (admission method 2* & FCE sequence 1) for all respiratory disease (ICD-10: J00-J99 in primary) using age at activity date for the years used by area of residence.  Denominator: mid-year population estimates for the relevant age group and for the years used by area of residence.\n"},{"$f":"IF('[1]Indicator Definitions'!H85=0, \"\", '[1]Indicator Definitions'!H85)","v":"This represents Kent residents attending both Kent and non-Kent providers."},{"$f":"IF('[1]Indicator Definitions'!I85=0, \"\", '[1]Indicator Definitions'!I85)","v":"Annual October"},{"$f":"'[1]Indicator Definitions'!L85","v":"Hospital Episode Statistics (HES), NHS Digital, ONS"},"N"]
[{"$f":"'[1]Indicator Definitions'!A86","v":"L23"},{"$f":"'[1]Indicator Definitions'!B86","v":"Living Well"},{"$f":"'[1]Indicator Definitions'!C86","v":"Respiratory disease"},{"$f":"'[1]Indicator Definitions'!D86","v":"Emergency hospital admissions for COPD"},{"$f":"'[1]Indicator Definitions'!E86","v":"Age standardised rate per 100,000 adults aged 35+"},{"$f":"IF('[1]Indicator Definitions'!F86=0, \"\", '[1]Indicator Definitions'!F86)","v":"ICD 10: J40-44 (primary diagnosis)"},{"$f":"'[1]Indicator Definitions'!G86","v":"Age standardised rate of emergency hospital admissions with diagnostic codes for COPD per 100,000 adult resident population aged 35+. Numerator: total number of emergency hospital admissions (admission method 2* & FCE sequence 1) with a primary diagnostic code for COPD (ICD 10: J40-44) using age at activity date for the years used by area of residence. Denominator: mid-year population estimates for adults aged 35+ and for the years used by area of residence.\n"},{"$f":"IF('[1]Indicator Definitions'!H86=0, \"\", '[1]Indicator Definitions'!H86)","v":"This represents Kent residents attending both Kent and non-Kent providers."},{"$f":"IF('[1]Indicator Definitions'!I86=0, \"\", '[1]Indicator Definitions'!I86)","v":"Annual October"},{"$f":"'[1]Indicator Definitions'!L86","v":"Hospital Episode Statistics (HES), NHS Digital, ONS"},"N"]
[{"$f":"'[1]Indicator Definitions'!A87","v":"L22"},{"$f":"'[1]Indicator Definitions'!B87","v":"Living Well"},{"$f":"'[1]Indicator Definitions'!C87","v":"Respiratory disease"},{"$f":"'[1]Indicator Definitions'!D87","v":"Premature mortality from respiratory disease"},{"$f":"'[1]Indicator Definitions'!E87","v":"Age standardised rate per 100,000 people aged under 75 years"},{"$f":"IF('[1]Indicator Definitions'!F87=0, \"\", '[1]Indicator Definitions'!F87)","v":"classified by underlying cause of death (ICD-10: J00-J99) "},{"$f":"'[1]Indicator Definitions'!G87","v":"Age standardised rate of deaths from all respiratory diseases for ages under 75 years per 100,000 relevant resident population. Numerator: Office for National Statistics deaths from all respiratory diseases classified by underlying cause of death (ICD-10: J00-J99) registered in the respective calendar year.  Denominator: mid-year population estimates for the relevant age group and for the years used by area of residence.\n"},{"$f":"IF('[1]Indicator Definitions'!H87=0, \"\", '[1]Indicator Definitions'!H87)","v":"An indicator produced by NHS Digital (formerly Health & Social Care Information Centre) as part of the NHS Outcomes Framework.  Single-year periods have been used for all outputs with annual data from 2003. \nAge standardised using the European Standard Population. The age standardised rate is the rate of events that would occur in the standard population if that population were to experience the age-specific rates of the study population. Allows for comparisons of local population to Kent and England.\n"},{"$f":"IF('[1]Indicator Definitions'!I87=0, \"\", '[1]Indicator Definitions'!I87)","v":"Annual August"},{"$f":"'[1]Indicator Definitions'!L87","v":"PCMD"},"N"]
[{"$f":"'[1]Indicator Definitions'!A88","v":"L31"},{"$f":"'[1]Indicator Definitions'!B88","v":"Living Well"},{"$f":"'[1]Indicator Definitions'!C88","v":"Respiratory disease"},{"$f":"'[1]Indicator Definitions'!D88","v":"Recorded asthma prevalence"},{"$f":"'[1]Indicator Definitions'!E88","v":"Percentage of patients recorded on GP QOF registers as having Asthma"},{"$f":"IF('[1]Indicator Definitions'!F88=0, \"\", '[1]Indicator Definitions'!F88)","v":"modelled ward-level estimates"},{"$f":"'[1]Indicator Definitions'!G88","v":"The percentage of all age patients recorded within general practice registers as having asthma as reported by the Quality & Outcomes Framework. Numerator: patients recorded within general practice registers as having asthma as reported by the Quality & Outcomes Framework. Denominator: the all age registered population recorded by the Quality & Outcomes Framework.\n"},{"$f":"IF('[1]Indicator Definitions'!H88=0, \"\", '[1]Indicator Definitions'!H88)","v":"The Quality and Outcomes Framework is published annually and uses an extract of practice list sizes as of 1st January and disease registers as at 31st March within the relevant financial year. Ward level data has been modelled using the general practice patient distributions published by NHS Digital.  Recorded prevalence represents persons presenting to and being diagnosed within general practices. It is difficult to interpret whether any differences in recorded prevalence are due to true underlying prevalence or due to the effectiveness of case finding strategies.\n"},{"$f":"IF('[1]Indicator Definitions'!I88=0, \"\", '[1]Indicator Definitions'!I88)","v":"Annual October"},{"$f":"'[1]Indicator Definitions'!L88","v":"QOF"},"N"]
[{"$f":"'[1]Indicator Definitions'!A89","v":"L05"},{"$f":"'[1]Indicator Definitions'!B89","v":"Living Well"},{"$f":"'[1]Indicator Definitions'!C89","v":"Respiratory disease"},{"$f":"'[1]Indicator Definitions'!D89","v":"Recorded COPD prevalence"},{"$f":"'[1]Indicator Definitions'!E89","v":"Percentage of patients recorded on GP QOF registers as having COPD Percentage of patients recorded on GP QOF registers as having COPD\n"},{"$f":"IF('[1]Indicator Definitions'!F89=0, \"\", '[1]Indicator Definitions'!F89)","v":"modelled ward-level estimates"},{"$f":"'[1]Indicator Definitions'!G89","v":"The percentage of all age patients recorded within general practice registers as having chronic obstructive pulmonary disease as reported by the Quality & Outcomes Framework. Including the following read codes; H3, H31, H32, H36, H37, H38, H39, H3z, H4640, H4641, H5832, Hyu30, Hyu31. Numerator: patients recorded within general practice registers as having chronic obstructive pulmonary disease as reported by the Quality & Outcomes Framework. Denominator: the all age registered population recorded by the Quality & Outcomes Framework.\n"},{"$f":"IF('[1]Indicator Definitions'!H89=0, \"\", '[1]Indicator Definitions'!H89)","v":"The Quality and Outcomes Framework is published annually and uses an extract of practice list sizes as of 1st January and disease registers as at 31st March within the relevant financial year. Ward level data has been modelled using the general practice patient distributions published by NHS Digital.  Recorded prevalence represents persons presenting to and being diagnosed within general practices. It is difficult to interpret whether any differences in recorded prevalence are due to true underlying prevalence or due to the effectiveness of case finding strategies.\n"},{"$f":"IF('[1]Indicator Definitions'!I89=0, \"\", '[1]Indicator Definitions'!I89)","v":"Annual October"},{"$f":"'[1]Indicator Definitions'!L89","v":"QOF"},"N"]
[{"$f":"'[1]Indicator Definitions'!A90","v":"L49"},{"$f":"'[1]Indicator Definitions'!B90","v":"Living Well"},{"$f":"'[1]Indicator Definitions'!C90","v":"Respiratory disease"},{"$f":"'[1]Indicator Definitions'!D90","v":"Undiagnosed COPD (estimated)"},{"$f":"'[1]Indicator Definitions'!E90","v":"Modelled estimates of the prevalence of undiagnosed COPD"},{"$f":"IF('[1]Indicator Definitions'!F90=0, \"\", '[1]Indicator Definitions'!F90)","v":"modelled ward-level estimates"},{"$f":"'[1]Indicator Definitions'!G90","v":"Estimated prevalence of undiagnosed COPD, calculated by comparing the estimated prevalence of COPD (as estimated by a predictive model developed by Imperial College, London) and the prevalence of COPD recorded in QOF.  Imperial College have produced estimates at GP practice level, which have been modelled to ward using GP practice populations.\n"},{"$f":"IF('[1]Indicator Definitions'!H90=0, \"\", '[1]Indicator Definitions'!H90)","v":"Estimates of disease counts are based on a logistic regression model developed by Imperial College based on CPRD.  Numerator uses CPRD recorded COPD based on agrees Read Code lists, HES linked records of admission for COPD and inferred COPD based on symptoms and prescribing.  Predictor variables in the final model are: age group (10 year age bands), sex, smoking status (current; ex-; non-) and deprivation score (quintiles of IMD score).\n"},{"$f":"IF('[1]Indicator Definitions'!I90=0, \"\", '[1]Indicator Definitions'!I90)","v":"2017-04-01"},{"$f":"'[1]Indicator Definitions'!L90","v":"Imperial College London/QOF"},"N"]
[{"$f":"'[1]Indicator Definitions'!A91","v":"A01"},{"$f":"'[1]Indicator Definitions'!B91","v":"Ageing Well"},{"$f":"'[1]Indicator Definitions'!C91","v":"Demographics"},{"$f":"'[1]Indicator Definitions'!D91","v":"Income deprivation affecting older people (IDAOPI)"},{"$f":"'[1]Indicator Definitions'!E91","v":"The percentage of those aged 60 or over who experience income deprivation"},{"$f":"IF('[1]Indicator Definitions'!F91=0, \"\", '[1]Indicator Definitions'!F91)","v":""},{"$f":"'[1]Indicator Definitions'!G91","v":"The percentage of those aged 60 or over who experience income deprivation. Those receiving Income Support or income-based Jobseekers Allowance or Employment and Support Allowance or Pension Credit (Guarantee)\n"},{"$f":"IF('[1]Indicator Definitions'!H91=0, \"\", '[1]Indicator Definitions'!H91)","v":"The Indices of Deprivation 2015 have been constructed for the Department for Communities and Local Government (DCLG) by Oxford Consultants for Social Inclusion (OCSI)."},{"$f":"IF('[1]Indicator Definitions'!I91=0, \"\", '[1]Indicator Definitions'!I91)","v":"2015-09-01"},{"$f":"'[1]Indicator Definitions'!L91","v":"DCLG"},"N"]
[{"$f":"'[1]Indicator Definitions'!A92","v":"A02"},{"$f":"'[1]Indicator Definitions'!B92","v":"Ageing Well"},{"$f":"'[1]Indicator Definitions'!C92","v":"Demographics"},{"$f":"'[1]Indicator Definitions'!D92","v":"Persons aged 65 years and over"},{"$f":"'[1]Indicator Definitions'!E92","v":"Office for National Statistics mid-year estimates"},{"$f":"IF('[1]Indicator Definitions'!F92=0, \"\", '[1]Indicator Definitions'!F92)","v":"number and percentage of the relevant resident population"},{"$f":"'[1]Indicator Definitions'!G92","v":"Office for National Statistics mid-year estimates of the relevant resident population. Numerator: number of persons in age group within each electoral ward. Denominator: number of persons in age group within each Local Authority or Clinical Commissioning Group.\n"},{"$f":"IF('[1]Indicator Definitions'!H92=0, \"\", '[1]Indicator Definitions'!H92)","v":"This uses the Office for National Statistics estimates that are produced annually by age and sex. This is available at a national, local authority and small area (lower layer super output area). The national and local authority population estimates are derived using the cohort component method from the most recent census with adjustment for births, deaths and migration. The small area estimates are derived using the ratio change and best fit method from the most recent census; past releases have used patient register and child benefit data. \n"},{"$f":"IF('[1]Indicator Definitions'!I92=0, \"\", '[1]Indicator Definitions'!I92)","v":"Annual October"},{"$f":"'[1]Indicator Definitions'!L92","v":"ONS"},"N"]
[{"$f":"'[1]Indicator Definitions'!A93","v":"A03"},{"$f":"'[1]Indicator Definitions'!B93","v":"Ageing Well"},{"$f":"'[1]Indicator Definitions'!C93","v":"Demographics"},{"$f":"'[1]Indicator Definitions'!D93","v":"Persons aged 85 years and over"},{"$f":"'[1]Indicator Definitions'!E93","v":"Office for National Statistics mid-year estimates"},{"$f":"IF('[1]Indicator Definitions'!F93=0, \"\", '[1]Indicator Definitions'!F93)","v":"number and percentage of the relevant resident population"},{"$f":"'[1]Indicator Definitions'!G93","v":"Office for National Statistics mid-year estimates of the relevant resident population. Numerator: number of persons in age group within each electoral ward. Denominator: number of persons in age group within each Local Authority or Clinical Commissioning Group.\n"},{"$f":"IF('[1]Indicator Definitions'!H93=0, \"\", '[1]Indicator Definitions'!H93)","v":"This uses the Office for National Statistics estimates that are produced annually by age and sex. This is available at a national, local authority and small area (lower layer super output area). The national and local authority population estimates are derived using the cohort component method from the most recent census with adjustment for births, deaths and migration. The small area estimates are derived using the ratio change and best fit method from the most recent census; past releases have used patient register and child benefit data. \n"},{"$f":"IF('[1]Indicator Definitions'!I93=0, \"\", '[1]Indicator Definitions'!I93)","v":"Annual October"},{"$f":"'[1]Indicator Definitions'!L93","v":"ONS"},"N"]
[{"$f":"'[1]Indicator Definitions'!A94","v":"A18"},{"$f":"'[1]Indicator Definitions'!B94","v":"Ageing Well"},{"$f":"'[1]Indicator Definitions'!C94","v":"Demographics"},{"$f":"'[1]Indicator Definitions'!D94","v":"Population projections: Persons aged 65 years and over"},{"$f":"'[1]Indicator Definitions'!E94","v":"Office for National Statistics 2016-based projections"},{"$f":"IF('[1]Indicator Definitions'!F94=0, \"\", '[1]Indicator Definitions'!F94)","v":"KCC housing-led forecast (October 2018)"},{"$f":"'[1]Indicator Definitions'!G94","v":"Forecasted mid-year estimates of the relevant resident population. Two different forecasts are shown:  the Office for National Statistics forecasts & KCC's own housing-led forecasts.  The KCC forecasts take account of housing plans, which are not included within the ONS projections."},{"$f":"IF('[1]Indicator Definitions'!H94=0, \"\", '[1]Indicator Definitions'!H94)","v":""},{"$f":"IF('[1]Indicator Definitions'!I94=0, \"\", '[1]Indicator Definitions'!I94)","v":"Annual August/October"},{"$f":"'[1]Indicator Definitions'!L94","v":"ONS, KCC"},"N"]
[{"$f":"'[1]Indicator Definitions'!A95","v":"A19"},{"$f":"'[1]Indicator Definitions'!B95","v":"Ageing Well"},{"$f":"'[1]Indicator Definitions'!C95","v":"Demographics"},{"$f":"'[1]Indicator Definitions'!D95","v":"Population projections: Persons aged 85 years and over"},{"$f":"'[1]Indicator Definitions'!E95","v":"Office for National Statistics 2016-based projections"},{"$f":"IF('[1]Indicator Definitions'!F95=0, \"\", '[1]Indicator Definitions'!F95)","v":"KCC housing-led forecast (October 2018)"},{"$f":"'[1]Indicator Definitions'!G95","v":"Forecasted mid-year estimates of the relevant resident population. Two different forecasts are shown:  the Office for National Statistics forecasts & KCC's own housing-led forecasts.  The KCC forecasts take account of housing plans, which are not included within the ONS projections."},{"$f":"IF('[1]Indicator Definitions'!H95=0, \"\", '[1]Indicator Definitions'!H95)","v":""},{"$f":"IF('[1]Indicator Definitions'!I95=0, \"\", '[1]Indicator Definitions'!I95)","v":"Annual August/October"},{"$f":"'[1]Indicator Definitions'!L95","v":"ONS, KCC"},"N"]
[{"$f":"'[1]Indicator Definitions'!A96","v":"A06"},{"$f":"'[1]Indicator Definitions'!B96","v":"Ageing Well"},{"$f":"'[1]Indicator Definitions'!C96","v":"Healthcare usage"},{"$f":"'[1]Indicator Definitions'!D96","v":"Accident & Emergency attendances in people aged 65 and over"},{"$f":"'[1]Indicator Definitions'!E96","v":"Age standardised rate per 100,000 people aged 65 and over"},{"$f":"IF('[1]Indicator Definitions'!F96=0, \"\", '[1]Indicator Definitions'!F96)","v":""},{"$f":"'[1]Indicator Definitions'!G96","v":"Age standardised rate of accident and emergency attendances per 100,000 relevant resident population. Numerator: total number of accident and emergency attendances using age at activity date for the years used by area of residence. This includes all department types, including; consultant led 24-hour services, speciality services (e.g. ophthalmology & dental) and minor injury unit. Excludes NHS walk in centres. Denominator: mid-year population estimates for the relevant age group and for the years used by area of residence.\n"},{"$f":"IF('[1]Indicator Definitions'!H96=0, \"\", '[1]Indicator Definitions'!H96)","v":"Public Health England caveat their use of the Hospital Episode Statistics dataset “which has a number of continuing issues regarding quality and coverage of certain key fields. Completeness of data by provider varies, overall completeness when compared to the weekly A&E sit reps is around 86%”"},{"$f":"IF('[1]Indicator Definitions'!I96=0, \"\", '[1]Indicator Definitions'!I96)","v":"Annual October"},{"$f":"'[1]Indicator Definitions'!L96","v":"Hospital Episode Statistics (HES), NHS Digital, ONS"},"N"]
[{"$f":"'[1]Indicator Definitions'!A97","v":"A07"},{"$f":"'[1]Indicator Definitions'!B97","v":"Ageing Well"},{"$f":"'[1]Indicator Definitions'!C97","v":"Healthcare usage"},{"$f":"'[1]Indicator Definitions'!D97","v":"Elective hospital admissions in people aged 65 and over"},{"$f":"'[1]Indicator Definitions'!E97","v":"Age standardised rate of per 100,000 people aged 65 and over"},{"$f":"IF('[1]Indicator Definitions'!F97=0, \"\", '[1]Indicator Definitions'!F97)","v":""},{"$f":"'[1]Indicator Definitions'!G97","v":"Age standardised rate of elective hospital admissions per 100,000 relevant resident population. Numerator: total number of elective hospital admissions (admission method 1* & FCE sequence 1) using age at activity date for the years used by area of residence. Denominator: mid-year population estimates for the relevant age group and for the years used by area of residence.\n"},{"$f":"IF('[1]Indicator Definitions'!H97=0, \"\", '[1]Indicator Definitions'!H97)","v":"Elective hospital admissions represent an admission planned in advance, unlike an emergency hospital admission. "},{"$f":"IF('[1]Indicator Definitions'!I97=0, \"\", '[1]Indicator Definitions'!I97)","v":"Annual October"},{"$f":"'[1]Indicator Definitions'!L97","v":"Hospital Episode Statistics (HES), NHS Digital, ONS"},"N"]
[{"$f":"'[1]Indicator Definitions'!A98","v":"A10"},{"$f":"'[1]Indicator Definitions'!B98","v":"Ageing Well"},{"$f":"'[1]Indicator Definitions'!C98","v":"Healthcare usage"},{"$f":"'[1]Indicator Definitions'!D98","v":"Emergency hospital admissions caused by hip fracture in people aged 65 and over"},{"$f":"'[1]Indicator Definitions'!E98","v":"Age standardised rate per 100,000  people aged 65 and over"},{"$f":"IF('[1]Indicator Definitions'!F98=0, \"\", '[1]Indicator Definitions'!F98)","v":"ICD 10: S72.0, S72.1, S72.2 in primary"},{"$f":"'[1]Indicator Definitions'!G98","v":"Age standardised rate of emergency hospital admissions with diagnostic codes for fractured neck of femur per 100,000 resident population aged 65+. Numerator: total number of emergency hospital admissions (admission method 2* & FCE sequence 1) with diagnostic codes for hip fracture (ICD 10: S72.0, S72.1, S72.2 in primary) using age at activity date for the years used by area of residence. Denominator: mid-year population estimates for persons aged 65+ and for the years used by area of residence.\n"},{"$f":"IF('[1]Indicator Definitions'!H98=0, \"\", '[1]Indicator Definitions'!H98)","v":"Hip fracture is one of the largest cause of emergency hospital admissions for older people and significantly impacts on long term outcomes. For example, this is often a major precipitant of people moving from their own home to residential or long-term nursing care. This represents Kent residents attending both Kent and non-Kent providers."},{"$f":"IF('[1]Indicator Definitions'!I98=0, \"\", '[1]Indicator Definitions'!I98)","v":"Annual October"},{"$f":"'[1]Indicator Definitions'!L98","v":"Hospital Episode Statistics (HES), NHS Digital, ONS"},"N"]
[{"$f":"'[1]Indicator Definitions'!A99","v":"A11"},{"$f":"'[1]Indicator Definitions'!B99","v":"Ageing Well"},{"$f":"'[1]Indicator Definitions'!C99","v":"Healthcare usage"},{"$f":"'[1]Indicator Definitions'!D99","v":"Emergency hospital admissions caused by influenza and pneumonia in people aged 65 and over"},{"$f":"'[1]Indicator Definitions'!E99","v":"Age standardised rate per 100,000  people aged 65 and over"},{"$f":"IF('[1]Indicator Definitions'!F99=0, \"\", '[1]Indicator Definitions'!F99)","v":"ICD 10: J09, J18 in primary"},{"$f":"'[1]Indicator Definitions'!G99","v":"Age standardised rate of emergency hospital admissions with diagnostic codes for influenza and pneumonia per 100,000 relevant resident population. Numerator: total number of emergency hospital admissions (admission method 2* & FCE sequence 1) with diagnostic codes for influenza and pneumonia (ICD 10: J09, J18 in primary) using age at activity date for the years used by area of residence. Denominator: mid-year population estimates for the relevant age group and for the years used by area of residence.\n"},{"$f":"IF('[1]Indicator Definitions'!H99=0, \"\", '[1]Indicator Definitions'!H99)","v":"This represents Kent residents attending both Kent and non-Kent providers."},{"$f":"IF('[1]Indicator Definitions'!I99=0, \"\", '[1]Indicator Definitions'!I99)","v":"Annual October"},{"$f":"'[1]Indicator Definitions'!L99","v":"Hospital Episode Statistics (HES), NHS Digital, ONS"},"N"]
[{"$f":"'[1]Indicator Definitions'!A100","v":"A09"},{"$f":"'[1]Indicator Definitions'!B100","v":"Ageing Well"},{"$f":"'[1]Indicator Definitions'!C100","v":"Healthcare usage"},{"$f":"'[1]Indicator Definitions'!D100","v":"Emergency hospital admissions due to falls in people aged 65 and over"},{"$f":"'[1]Indicator Definitions'!E100","v":"Age standardised rate per 100,000  people aged 65 and over"},{"$f":"IF('[1]Indicator Definitions'!F100=0, \"\", '[1]Indicator Definitions'!F100)","v":"ICD 10: S00-T98 (primary diagnosis) and external cause code W00-W19"},{"$f":"'[1]Indicator Definitions'!G100","v":"Age standardised rate of emergency hospital admissions with diagnostic codes for falls per 100,000 resident population aged 65+. Numerator: total number of emergency hospital admissions (admission method 2* & FCE sequence 1) with diagnostic codes for falls (ICD 10: S00-T98 in primary and a W00-W19 external cause code) using age at activity date for the years used by area of residence.  Denominator: mid-year population estimates for persons aged 65+ and for the years used by area of residence.\n"},{"$f":"IF('[1]Indicator Definitions'!H100=0, \"\", '[1]Indicator Definitions'!H100)","v":"Falls are the largest cause of emergency hospital admissions for older people and significantly impacts on long term outcomes. For example, this is often a major precipitant of people moving from their own home to residential or long-term nursing care. This represents Kent residents attending both Kent and non-Kent providers."},{"$f":"IF('[1]Indicator Definitions'!I100=0, \"\", '[1]Indicator Definitions'!I100)","v":"Annual October"},{"$f":"'[1]Indicator Definitions'!L100","v":"Hospital Episode Statistics (HES), NHS Digital, ONS"},"N"]
[{"$f":"'[1]Indicator Definitions'!A101","v":"A08"},{"$f":"'[1]Indicator Definitions'!B101","v":"Ageing Well"},{"$f":"'[1]Indicator Definitions'!C101","v":"Healthcare usage"},{"$f":"'[1]Indicator Definitions'!D101","v":"Emergency hospital admissions in people aged 65 and over"},{"$f":"'[1]Indicator Definitions'!E101","v":"Age standardised rate of per 100,000 people aged 65 and over"},{"$f":"IF('[1]Indicator Definitions'!F101=0, \"\", '[1]Indicator Definitions'!F101)","v":""},{"$f":"'[1]Indicator Definitions'!G101","v":"Age standardised rate of emergency hospital admissions per 100,000 relevant resident population. Numerator: total number of emergency hospital admissions (admission method 2* & FCE sequence 1) using age at activity date for the years used by area of residence. Denominator: mid-year population estimates for the relevant age group and for the years used by area of residence.\n"},{"$f":"IF('[1]Indicator Definitions'!H101=0, \"\", '[1]Indicator Definitions'!H101)","v":"This represents Kent residents attending both Kent and non-Kent providers."},{"$f":"IF('[1]Indicator Definitions'!I101=0, \"\", '[1]Indicator Definitions'!I101)","v":"Annual October"},{"$f":"'[1]Indicator Definitions'!L101","v":"Hospital Episode Statistics (HES), NHS Digital, ONS"},"N"]
[{"$f":"'[1]Indicator Definitions'!A102","v":"A12"},{"$f":"'[1]Indicator Definitions'!B102","v":"Ageing Well"},{"$f":"'[1]Indicator Definitions'!C102","v":"Healthcare usage"},{"$f":"'[1]Indicator Definitions'!D102","v":"Emergency hospital admissions involving individuals with dementia amongst people aged 65 and over"},{"$f":"'[1]Indicator Definitions'!E102","v":"Age standardised rate per 100,000  people aged 65 and over"},{"$f":"IF('[1]Indicator Definitions'!F102=0, \"\", '[1]Indicator Definitions'!F102)","v":"ICD 10: F00-F04, G30 & G31"},{"$f":"'[1]Indicator Definitions'!G102","v":"Age standardised rate of emergency hospital admissions with diagnostic codes for dementia per 100,000 resident population aged 65+. Numerator: total number of emergency hospital admissions (admission method 2* & FCE sequence 1) with diagnostic codes for dementia (ICD 10: F00-F04, G30 & G31 in any diagnositc field) using age at activity date for the years used by area of residence. Denominator: mid-year population estimates for adults aged 65+ and for the years used by area of residence.\n"},{"$f":"IF('[1]Indicator Definitions'!H102=0, \"\", '[1]Indicator Definitions'!H102)","v":"This represents Kent residents attending both Kent and non-Kent providers."},{"$f":"IF('[1]Indicator Definitions'!I102=0, \"\", '[1]Indicator Definitions'!I102)","v":"Annual October"},{"$f":"'[1]Indicator Definitions'!L102","v":"Hospital Episode Statistics (HES), NHS Digital, ONS"},"N"]
[{"$f":"'[1]Indicator Definitions'!A103","v":"A13"},{"$f":"'[1]Indicator Definitions'!B103","v":"Ageing Well"},{"$f":"'[1]Indicator Definitions'!C103","v":"Mortality"},{"$f":"'[1]Indicator Definitions'!D103","v":"Mortality from all causes for people aged 65 and over"},{"$f":"'[1]Indicator Definitions'!E103","v":"Age standardised rate per 100,000 people aged 65 and over"},{"$f":"IF('[1]Indicator Definitions'!F103=0, \"\", '[1]Indicator Definitions'!F103)","v":"classified by underlying cause of death (ICD-10: A00-Y99) "},{"$f":"'[1]Indicator Definitions'!G103","v":"Age standardised rate of deaths from all causes for persons aged 65 and over per 100,000 relevant resident population.\nNumerator: Office for National Statistics deaths for the relevant age group from all causes classified by underlying cause of death (ICD-10: A00-Y99) registered in the respective calendar year. \nDenominator: mid-year population estimates for the relevant age group and for the years used by area of residence.\n"},{"$f":"IF('[1]Indicator Definitions'!H103=0, \"\", '[1]Indicator Definitions'!H103)","v":"An indicator produced by the Kent Public Health Observatory using data from the Primary Care Mortality Database.   Single-year periods have been used for all outputs with annual data from 2003.  Age standardised using the European Standard Population. The age standardised rate is the rate of events that would occur in the standard population if that population were to experience the age-specific rates of the study population. Allows for comparisons of local population to Kent and England.\n"},{"$f":"IF('[1]Indicator Definitions'!I103=0, \"\", '[1]Indicator Definitions'!I103)","v":"Annual August"},{"$f":"'[1]Indicator Definitions'!L103","v":"PCMD"},"N"]
[{"$f":"'[1]Indicator Definitions'!A104","v":"A14"},{"$f":"'[1]Indicator Definitions'!B104","v":"Ageing Well"},{"$f":"'[1]Indicator Definitions'!C104","v":"Mortality"},{"$f":"'[1]Indicator Definitions'!D104","v":"Mortality from cancers for people aged 65 and over"},{"$f":"'[1]Indicator Definitions'!E104","v":"Age standardised rate per 100,000 people aged 65 and over"},{"$f":"IF('[1]Indicator Definitions'!F104=0, \"\", '[1]Indicator Definitions'!F104)","v":"classified by underlying cause of death (ICD-10: C00-C97) "},{"$f":"'[1]Indicator Definitions'!G104","v":"Age standardised rate of deaths from all cancers for persons aged 65 and over per 100,000 relevant resident population. Numerator: Office for National Statistics deaths for the relevant age group from all malignant neoplasms classified by underlying cause of death (ICD-10: C00-C97) registered in the respective calendar year. Denominator: mid-year population estimates for the relevant age group and for the years used by area of residence.\n"},{"$f":"IF('[1]Indicator Definitions'!H104=0, \"\", '[1]Indicator Definitions'!H104)","v":"An indicator produced by the Kent Public Health Observatory using data from the Primary Care Mortality Database.   Single-year periods have been used for all outputs with annual data from 2003.  Age standardised using the European Standard Population. The age standardised rate is the rate of events that would occur in the standard population if that population were to experience the age-specific rates of the study population. Allows for comparisons of local population to Kent and England.\n"},{"$f":"IF('[1]Indicator Definitions'!I104=0, \"\", '[1]Indicator Definitions'!I104)","v":"Annual August"},{"$f":"'[1]Indicator Definitions'!L104","v":"PCMD"},"N"]
[{"$f":"'[1]Indicator Definitions'!A105","v":"A15"},{"$f":"'[1]Indicator Definitions'!B105","v":"Ageing Well"},{"$f":"'[1]Indicator Definitions'!C105","v":"Mortality"},{"$f":"'[1]Indicator Definitions'!D105","v":"Mortality from cardiovascular disease for people aged 65 and over"},{"$f":"'[1]Indicator Definitions'!E105","v":"Age standardised rate per 100,000 people aged 65 and over"},{"$f":"IF('[1]Indicator Definitions'!F105=0, \"\", '[1]Indicator Definitions'!F105)","v":"classified by underlying cause of death (ICD-10: I00-I99) "},{"$f":"'[1]Indicator Definitions'!G105","v":"Age standardised rate of deaths from all cardiovascular diseases for persons aged 65 and over per 100,000 relevant resident population. Numerator: Office for National Statistics deaths for the relevant age group from all cardiovascular diseases classified by underlying cause of death (ICD-10: I00-I99) registered in the respective calendar year. Denominator: mid-year population estimates for the relevant age group and for the years used by area of residence.\n"},{"$f":"IF('[1]Indicator Definitions'!H105=0, \"\", '[1]Indicator Definitions'!H105)","v":"An indicator produced by the Kent Public Health Observatory using data from the Primary Care Mortality Database.   Single-year periods have been used for all outputs with annual data from 2003.  Age standardised using the European Standard Population. The age standardised rate is the rate of events that would occur in the standard population if that population were to experience the age-specific rates of the study population. Allows for comparisons of local population to Kent and England.\n"},{"$f":"IF('[1]Indicator Definitions'!I105=0, \"\", '[1]Indicator Definitions'!I105)","v":"Annual August"},{"$f":"'[1]Indicator Definitions'!L105","v":"PCMD"},"N"]
[{"$f":"'[1]Indicator Definitions'!A106","v":"A16"},{"$f":"'[1]Indicator Definitions'!B106","v":"Ageing Well"},{"$f":"'[1]Indicator Definitions'!C106","v":"Mortality"},{"$f":"'[1]Indicator Definitions'!D106","v":"Mortality from respiratory disease for people aged 65 and over"},{"$f":"'[1]Indicator Definitions'!E106","v":"Age standardised rate per 100,000 people aged 65 and over"},{"$f":"IF('[1]Indicator Definitions'!F106=0, \"\", '[1]Indicator Definitions'!F106)","v":"classified by underlying cause of death (ICD-10: J00-J99) "},{"$f":"'[1]Indicator Definitions'!G106","v":"Age standardised rate of deaths from all respiratory diseases for persons aged 65 and over per 100,000 relevant resident population. Numerator: Office for National Statistics deaths for the relevant age group from all respiratory diseases classified by underlying cause of death (ICD-10: J00-J99) registered in the respective calendar year. Denominator: mid-year population estimates for the relevant age group and for the years used by area of residence.\n"},{"$f":"IF('[1]Indicator Definitions'!H106=0, \"\", '[1]Indicator Definitions'!H106)","v":"An indicator produced by the Kent Public Health Observatory using data from the Primary Care Mortality Database.   Single-year periods have been used for all outputs with annual data from 2003.  Age standardised using the European Standard Population. The age standardised rate is the rate of events that would occur in the standard population if that population were to experience the age-specific rates of the study population. Allows for comparisons of local population to Kent and England.\n"},{"$f":"IF('[1]Indicator Definitions'!I106=0, \"\", '[1]Indicator Definitions'!I106)","v":"Annual August"},{"$f":"'[1]Indicator Definitions'!L106","v":"PCMD"},"N"]
[{"$f":"'[1]Indicator Definitions'!A107","v":"A04"},{"$f":"'[1]Indicator Definitions'!B107","v":"Ageing Well"},{"$f":"'[1]Indicator Definitions'!C107","v":"Wellbeing & disease prevalence"},{"$f":"'[1]Indicator Definitions'!D107","v":"Life expectancy at 65 years, male"},{"$f":"'[1]Indicator Definitions'!E107","v":"Figures based on deaths registered and mid-year population estimates"},{"$f":"IF('[1]Indicator Definitions'!F107=0, \"\", '[1]Indicator Definitions'!F107)","v":"life expectancy in years calculated using the Public Health England calculator"},{"$f":"'[1]Indicator Definitions'!G107","v":"Life expectancy from 65 in years calculated using the Public Health England calculator. Numerator: death registrations for the years used by area of residence. Denominator: mid-year population estimates for the years used by area of residence.\n"},{"$f":"IF('[1]Indicator Definitions'!H107=0, \"\", '[1]Indicator Definitions'!H107)","v":"This is an estimate of the average number of years a person at 65 years old could be expected to live, assuming age specific mortality levels remain constant. This uses death registrations, as survival from 65 years is based on death rates at every age. "},{"$f":"IF('[1]Indicator Definitions'!I107=0, \"\", '[1]Indicator Definitions'!I107)","v":"Annual October"},{"$f":"'[1]Indicator Definitions'!L107","v":"ONS, NHS Digital, PHE"},"N"]
[{"$f":"'[1]Indicator Definitions'!A108","v":"A20"},{"$f":"'[1]Indicator Definitions'!B108","v":"Ageing Well"},{"$f":"'[1]Indicator Definitions'!C108","v":"Wellbeing & disease prevalence"},{"$f":"'[1]Indicator Definitions'!D108","v":"Multimorbidity in people aged 65 and over (developmental statistics)"},{"$f":"'[1]Indicator Definitions'!E108","v":"Patients recorded by their GP as having 2 or more long-term conditions"},{"$f":"IF('[1]Indicator Definitions'!F108=0, \"\", '[1]Indicator Definitions'!F108)","v":"age standardised rate per 100,000 people aged 65 years and over"},{"$f":"'[1]Indicator Definitions'!G108","v":"Age standardised rate of people aged 65 years and over with multimorbidity, classified by having 2 or more of the following long-term conditions: Atrial fibrillation (AF), Coronary Heart Disease (CHD), Hypertension, Heart Failure (HF), Peripheral Artery Disease (PAD), Stroke, Diabetes, Asthma, Chronic Obstructive Pulmonary Disease (COPD), Dementia, Mental Health, Cancer, Chronic Kidney Disease (CKD), Epilepsy, Learning Disability (LD), Osteoporosis, Rheumatoid Arthritis (RA).  Numerator:  Number with 2 or more long term conditions as listed above taken from the Kent Integrated Dataset (KID) LTC table.  Denominator:  Registered population as recorded within KID for Kent LSOAs and for relevant age group.  Analysis is restricted to patients registered at GPs flowing data into the KID at the time of the analysis."},{"$f":"IF('[1]Indicator Definitions'!H108=0, \"\", '[1]Indicator Definitions'!H108)","v":"Information taken from the KID using the LTC table.  Analysis based on the GP records captured within the KID should be treated as 'developmental statistics'."},{"$f":"IF('[1]Indicator Definitions'!I108=0, \"\", '[1]Indicator Definitions'!I108)","v":"NA"},{"$f":"'[1]Indicator Definitions'!L108","v":"Kent Integrated Dataset (KID)"},"N"]

{"sheet":"Output","index":2,"n_rows":36,"n_cols":16,"rows_kept":36,"cut":false,"hidden":true,"merged":[[21,1,31,8],[35,1,45,8]]}
[]
[]
[]
[]
[]
[null,"Health & Social Care Maps: Indicator Definitions"]
[null,null,null,null,null,null,null,null,null,null,null,null,null,"Max len","Indicator","Len"]
[null,null,null,null,null,null,null,null,null,null,null,null,"ID",{"$f":"MAX(LEN('Indicator Definitions'!A2:A59))","v":3},"S35",{"$f":"LEN(O8)","v":3}]
[null,null,null,null,null,null,null,null,null,null,null,null,"Doman",{"$f":"MAX(LEN('Indicator Definitions'!D2:D59))","v":63},"Starting Well",{"$f":"LEN(O9)","v":13}]
[null,null,null,null,null,null,null,null,null,null,null,null,"Theme",{"$f":"MAX(LEN('Indicator Definitions'!E2:E59))","v":53},"Healthcare usage",16]
[null,null,null,null,null,null,null,null,null,null,null,null,"Indicator",{"$f":"MAX(LEN('Indicator Definitions'!F2:F59))","v":0},"Hospital admissions for gastroenteritis in infants under 1",58]
[null,null,null,null,null,null,null,null,null,null,null,null,"Subheader",{"$f":"MAX(LEN('Indicator Definitions'!B2:B59))","v":13},"Crude rate per 10,000 resident population",41]
[null,null,null,null,null,null,null,null,null,null,null,null,"Smallprint",{"$f":"MAX(LEN('Indicator Definitions'!C2:C59))","v":16},"ICD 10: A020, A04-5, A072, A080-1, A083-5, A09, K520-2, K528-9 (primary diagnosis)",82]
[null,null,null,null,null,null,null,null,null,null,null,null,"Definition",{"$f":"MAX(LEN('Indicator Definitions'!G2:G59))","v":535},"Crude rate of emergency hospital admissions for gastroenteritis in infants aged under one year per 10,000 relevant resident population. Numerator: total number of emergency hospital admissions (admission method 2* & FCE sequence 1) with a primary diagnosis code for respiratory tract infection (ICD 10: A020, A04-5, A072, A080-1, A083-5, A09, K520-2, K528-9) using age at activity date for the years used by area of residence. Denominator: mid-year population estimates for infants aged under 1 for the years used by area of residence.",535]
[null,null,null,null,null,null,null,null,null,null,null,null,"Notes",{"$f":"MAX(LEN('Indicator Definitions'!H2:H59))","v":336},null,0]
[null,null,null,null,null,null,null,null,null,null,null,null,"National Release",{"$f":"MAX(LEN('Indicator Definitions'!I2:I59))","v":14},null,0]
[null,null,null,null,null,null,null,null,null,null,null,null,"Local Release",{"$f":"MAX(LEN('Indicator Definitions'!J2:J200))","v":51},"Hospital Episode Statistics (HES), NHS Digital, ONS",51]
[null,null,null,null,null,null,null,null,null,null,null,null,"Select for report",null,"Y"]
[null,null,null,null,null,null,null,null,null,null,null,null,null,null,"Hospital Episode Statistics (HES), NHS Digital, ONS"]
[null,null,null,null,null,null,null,null,null,null,null,null,null,null,{"$f":"TODAY()","v":"2018-12-14"}]
[null,null,null,null,null,null,null,null,null,null,null,null,"Concatenate",null,{"$f":"IF(AND(O12=\"*\",O13=\"*\"),CONCATENATE(O12,\",\",\" \",O13,\".\"),CONCATENATE(O12,\".\"))","v":"Crude rate per 10,000 resident population."}]
[null,{"$f":"$O$14","v":"Crude rate of emergency hospital admissions for gastroenteritis in infants aged under one year per 10,000 relevant resident population. Numerator: total number of emergency hospital admissions (admission method 2* & FCE sequence 1) with a primary diagnosis code for respiratory tract infection (ICD 10: A020, A04-5, A072, A080-1, A083-5, A09, K520-2, K528-9) using age at activity date for the years used by area of residence. Denominator: mid-year population estimates for infants aged under 1 for the years used by area of residence."}]
[]
[]
[]
[]
[]
[]
[]
[]
[]
[]
[]
[]
[]
[null,{"$f":"O15","v":0}]

{"sheet":"Change Log","index":3,"n_rows":2,"n_cols":4,"rows_kept":2,"cut":false,"hidden":true,"merged":[]}
["Date","Version","Comments","Initials"]
["2018-02-23",1,"Public facing version created and linked to master indicator list.","ZC"]

{"sheet":"Sheet1","index":4,"n_rows":3,"n_cols":14,"rows_kept":3,"cut":false,"hidden":true,"merged":[]}
[]
[null,null,null,null,null,null,null,null,null,null,null,null,null,{"$f":"COUNTIF('Indicator Definitions'!J:J, \"Y*\")","v":0}]
[null,null,null,null,null,null,null,null,null,null,null,null,null,{"$f":"(56*N2)","v":0}]